Workbook

Sheet Disclaimer
A1: DISCLAIMER
A2: This tool was developed by an observer participating with the Protection System Response to Power Swings Standard Drafting Team (PSRPS SDT) as a standard development aid for understanding how the PRC-026-1 - Attachment B criteria (i.e., lens) is applied under the draft PRC-026-1 standard. This tool is provided entirely for demonstration purposes, is not to be relied on for actual calculations, and is not intended to be used for compliance with any NERC Reliability Standard.

Sheet Input
A1: NERC Project 2010-13.3 Relay Loadability - Stable Power Swings (PRC-026-1)
A2: Generator Stable Power Swing Calculation Tool Draft
A4: Enter data in the yellow "fill" color only.
A5: Generator data can be provided by manufacturer's stability data sheets.
A6: System Equivalent is provided by the Transmission Owner's Short Circuit Database
A7: Notes: 1. These calcaulations are only necessary when the Elements are reported by the Transmission Coordinator per Requirement R1 or a load responsive
A8: relay has operated by a unstable or stable power swing per and is reported to the Transmsiion Coordinator per Requirement R2 or R3.
A9: 2. Applicable load responsive relays in this spreadsheet must also comply with other NERC Standards (PRC-001; PRC-019; PRC-025).
B10: Generator Data | G10: Relay Data (at generator terminals) | L10: Upper
B11: MVA Rating | C11: Saturated Xd' (per unit) | D11: Generator kV | G11: Location | H11: Generator Terminals | L11: Ea | M11: 1.42
B12: 940 | C12: 0.3845 | D12: 20 | G12: Impedance | H12: Ohms | I12: Per unit | L12: Eb | M12: 1
G13: Reach | H13: 10 | I13: =H13/(H17) -> 0.6527777778
B14: Generator Step-Up Transformer Data | G14: MTA Angle | H14: 85 | I14: =H14 -> 85
B15: MVA Rating | C15: Impedance (per unit) GSU Base | D15: Impedance (per unit) Generator Base | G15: PT Ratio | H15: =20000/120 -> 166.6666667 | L15: Lower
B16: 880 | C16: 0.1605 | D16: =(B12/B16)*C16 -> 0.1714431818 | G16: CT Ratio | H16: 6000 | L16: Eb | M16: 1
G17: Base ohms | H17: =((D12^2)/940)*(H16/H15) -> 15.31914894 | L17: Ea | M17: 0.7
B18: System Equivalent (per unit) 100MVA Base | C18: Angle | D18: System Equivalent (per unit) Generator Base | E18: High Voltage Rating | G18: 40-2
B19: 0.00723 | C19: 86.82 | D19: =B19*(B12/100) -> 0.067962 | E19: 345 | G19: 40 Z2P (negative offset ohms) | H19: 3.4
G20: 40Z2D (Diamete - ohms) | H20: 34.3
G21: 40-3
G22: 40 Z3P (negative offset ohms) | H22: 3.4
G23: 40Z3D (Diamete - ohms) | H23: 15.3
G24: 40-1
G25: 40 Z1P (positive offset ohms) | H25: 4.5
G26: 40Z1D (Diamete - ohmsr) | H26: 42.6
G27: Directional Element (degrees) | H27: -20
B31: Distance Relay Characteristic (21-1) Plotted with the Impedance Locus of a Stable Power Swing | I31: Loss of Field Relay Characteristic (21-1) Plotted with the Impedance Locus of a Stable Power Swing

Sheet Lens calcs
D1: 1.42 Ea | E1: 1.0Ea | F1: 0.7Ea | H1: Calculation Worksheet for Stable Power Swing
A2: Total Impedance | C2: m | D2: (1-m)*EA
A3: =Input!C12+Input!D16+Input!D19 -> 0.6239051818 | C3: =Input!C12/'Lens calcs'!A3 -> 0.6162795425 | D3: =(1-C3)*Input!M11 -> 0.5448830497 | E3: =(1-C3)*Input!M16 -> 0.3837204575 | F3: =(1-C3)*Input!M17 -> 0.2686043203 | U3: 90
A5: EA = 1.42; EB = 1.00
B6: Step 1 | D6: Step 2 | E6: Step 3 | I6: Step 4 | P6: Step 5
A7: Angle | B7: X | C7: Y | D7: X | E7: X | F7: Y | G7: Mag | H7: Angle | I7: X | J7: Y | K7: Eb | P7: Magitude | Q7: Angle | R7: R | S7: jX | T7: Mag | U7: Angle | V7: Zr (plot) | W7: Zx (plot) | X7: Angle
A8: 0 | B8: =D$3*(COS(RADIANS(A8))) -> 0.5448830497 | C8: =D$3*(SIN(RADIANS(A8))) -> 0 | D8: =C$3*Input!M$12 -> 0.6162795425 | E8: =B8+D8 -> 1.161162592 | F8: =C8 -> 0 | G8: =((E8^2)+(F8^2))^0.5 -> 1.161162592 | H8: =DEGREES(ATAN(F8/E8)) -> 0 | I8: =Input!M$11*(COS(RADIANS(A8))) -> 1.42 | J8: =Input!M$11*(SIN(RADIANS(A8))) -> 0 | K8: =Input!M$12 -> 1 | L8: =I8-K8 -> 0.42 | M8: =J8 -> 0 | N8: =((L8^2)+(M8^2))^0.5 -> 0.42 | O8: =DEGREES(ACOS(L8/N8)) -> 0 | P8: ='Lens calcs'!G8/'Lens calcs'!N8 -> 2.764672838 | Q8: =H8-O8 -> 0 | R8: =P8*(COS(RADIANS(Q8))) -> 2.764672838 | S8: =P8*(SIN(RADIANS(Q8))) -> 0 | T8: =P8*A$3 -> 1.72489371 | U8: =Q8+U$3 -> 90 | X8: 0
A9: 0.5 | B9: =D$3*(COS(RADIANS(A9))) -> 0.5448623022 | C9: =D$3*(SIN(RADIANS(A9))) -> 0.004754941276 | D9: =C$3*Input!M$12 -> 0.6162795425 | E9: =B9+D9 -> 1.161141845 | F9: =C9 -> 0.004754941276 | G9: =((E9^2)+(F9^2))^0.5 -> 1.161151581 | H9: =DEGREES(ATAN(F9/E9)) -> 0.2346281338 | I9: =Input!M$11*(COS(RADIANS(A9))) -> 1.419945931 | J9: =Input!M$11*(SIN(RADIANS(A9))) -> 0.01239168041 | K9: =Input!M$12 -> 1 | L9: =I9-K9 -> 0.4199459308 | M9: =J9 -> 0.01239168041 | N9: =((L9^2)+(M9^2))^0.5 -> 0.4201287166 | O9: =DEGREES(ACOS(L9/N9)) -> 1.690181946 | P9: ='Lens calcs'!G9/'Lens calcs'!N9 -> 2.763799604 | Q9: =H9-O9 -> -1.455553812 | R9: =P9*(COS(RADIANS(Q9))) -> 2.76290781 | S9: =P9*(SIN(RADIANS(Q9))) -> -0.07020458384 | T9: =P9*A$3 -> 1.724348894 | U9: =Q9+U$3 -> 88.54444619 | V9: =T9*COS(RADIANS(U9)) -> 0.04380100365 | W9: =T9*SIN(RADIANS(U9)) -> 1.7237925 | X9: 0.5
A10: 2 | B10: 0.5445511217 | C10: 0.0190161442 | D10: =C$3*Input!M$12 -> 0.6162795425 | E10: 1.160830664 | F10: 0.0190161442 | G10: 1.16098641 | H10: 0.9385067033 | I10: =Input!M$11*(COS(RADIANS(A10))) -> 1.419134974 | J10: =Input!M$11*(SIN(RADIANS(A10))) -> 0.04955728532 | K10: =Input!M$12 -> 1 | L10: 0.4191349744 | M10: 0.04955728532 | N10: 0.4220545596 | O10: 6.743177361 | P10: ='Lens calcs'!G10/'Lens calcs'!N10 -> 2.750796985 | Q10: -5.804670657 | R10: 2.736692185 | S10: -0.2782084492 | T10: 1.716236493 | U10: 84.19532934 | V10: =T10*COS(RADIANS(U10)) -> 0.1735756931 | W10: =T10*SIN(RADIANS(U10)) -> 1.707436435 | X10: 2
A11: 3 | B11: 0.5441363064 | C11: 0.02851697545 | D11: =C$3*Input!M$12 -> 0.6162795425 | E11: 1.160415849 | F11: 0.02851697545 | G11: 1.160766195 | H11: 1.407748388 | I11: =Input!M$11*(COS(RADIANS(A11))) -> 1.418053939 | J11: =Input!M$11*(SIN(RADIANS(A11))) -> 0.07431705786 | K11: =Input!M$12 -> 1 | L11: 0.4180539394 | M11: 0.07431705786 | N11: 0.4246081974 | O11: 10.08011407 | P11: ='Lens calcs'!G11/'Lens calcs'!N11 -> 2.733734776 | Q11: -8.67236568 | R11: 2.702479238 | S11: -0.4122035801 | T11: 1.705591292 | U11: 81.32763432 | V11: 0.2571759496 | W11: 1.6860908 | X11: 3
A12: 4 | B12: 0.543555742 | C12: 0.03800912015 | D12: =C$3*Input!M$12 -> 0.6162795425 | E12: 1.159835284 | F12: 0.03800912015 | G12: 1.160457918 | H12: 1.876976066 | I12: =Input!M$11*(COS(RADIANS(A12))) -> 1.416540951 | J12: =Input!M$11*(SIN(RADIANS(A12))) -> 0.09905419272 | K12: =Input!M$12 -> 1 | L12: 0.4165409514 | M12: 0.09905419272 | N12: 0.428156627 | O12: 13.37658652 | P12: ='Lens calcs'!G12/'Lens calcs'!N12 -> 2.710358418 | Q12: -11.49961046 | R12: 2.655950846 | S12: -0.5403405021 | T12: 1.691006662 | U12: 78.50038954 | V12: 0.3371212392 | W12: 1.657061496 | X12: 4
A13: 5 | B13: 0.5428096052 | C13: 0.04748968691 | D13: =C$3*Input!M$12 -> 0.6162795425 | E13: 1.159089148 | F13: 0.04748968691 | G13: 1.160061603 | H13: 2.346185052 | I13: =Input!M$11*(COS(RADIANS(A13))) -> 1.414596471 | J13: =Input!M$11*(SIN(RADIANS(A13))) -> 0.1237611547 | K13: =Input!M$12 -> 1 | L13: 0.4145964713 | M13: 0.1237611547 | N13: 0.4326743087 | O13: 16.62088558 | P13: ='Lens calcs'!G13/'Lens calcs'!N13 -> 2.681142789 | Q13: -14.27470053 | R13: 2.598361706 | S13: -0.6610923563 | T13: 1.672778879 | U13: 75.72529947 | V13: 0.4124589467 | W13: 1.621131332 | X13: 5
A14: 6 | B14: 0.5418981233 | C14: 0.05695578784 | D14: =C$3*Input!M$12 -> 0.6162795425 | E14: 1.158177666 | F14: 0.05695578784 | G14: 1.15957728 | H14: 2.815370655 | I14: =Input!M$11*(COS(RADIANS(A14))) -> 1.412221091 | J14: =Input!M$11*(SIN(RADIANS(A14))) -> 0.1484304178 | K14: =Input!M$12 -> 1 | L14: 0.4122210914 | M14: 0.1484304178 | N14: 0.438129909 | O14: 19.80266915 | P14: ='Lens calcs'!G14/'Lens calcs'!N14 -> 2.646651725 | Q14: -16.9872985 | R14: 2.53117711 | S14: -0.7732449766 | T14: 1.651259726 | U14: 73.0127015 | V14: 0.4824315477 | W14: 1.579214515 | X14: 6
A15: 7 | B15: 0.5408215741 | C15: 0.0664045395 | D15: =C$3*Input!M$12 -> 0.6162795425 | E15: 1.157101117 | F15: 0.0664045395 | G15: 1.159004986 | H15: 3.284528166 | I15: =Input!M$11*(COS(RADIANS(A15))) -> 1.409415535 | J15: =Input!M$11*(SIN(RADIANS(A15))) -> 0.1730544676 | K15: =Input!M$12 -> 1 | L15: 0.4094155353 | M15: 0.1730544676 | N15: 0.4444872657 | O15: 22.91313002 | P15: ='Lens calcs'!G15/'Lens calcs'!N15 -> 2.60750999 | Q15: -19.62860185 | R15: 2.455987269 | S15: -0.8759194485 | T15: 1.626838994 | U15: 70.37139815 | V15: 0.5464906828 | W15: 1.532303184 | X15: 7
A16: 8 | B16: 0.5395802853 | C16: 0.07583306368 | D16: =C$3*Input!M$12 -> 0.6162795425 | E16: 1.155859828 | F16: 0.07583306368 | G16: 1.158344765 | H16: 3.753652859 | I16: =Input!M$11*(COS(RADIANS(A16))) -> 1.406180658 | J16: =Input!M$11*(SIN(RADIANS(A16))) -> 0.1976258034 | K16: =Input!M$12 -> 1 | L16: 0.4061806576 | M16: 0.1976258034 | N16: 0.4517064144 | O16: 25.94507886 | P16: ='Lens calcs'!G16/'Lens calcs'!N16 -> 2.564375285 | Q16: -22.191426 | R16: 2.374424613 | S16: -0.9685702669 | T16: 1.599927029 | U16: 67.808574 | V16: 0.6042960085 | W16: 1.48141582 | X16: 8
A17: 9 | B17: 0.5381746352 | C17: 0.08523848839 | D17: =C$3*Input!M$12 -> 0.6162795425 | E17: 1.154454178 | F17: 0.08523848839 | G17: 1.157596669 | H17: 4.222739989 | I17: =Input!M$11*(COS(RADIANS(A17))) -> 1.402517444 | J17: =Input!M$11*(SIN(RADIANS(A17))) -> 0.2221369404 | K17: =Input!M$12 -> 1 | L17: 0.4025174436 | M17: 0.2221369404 | N17: 0.4597446168 | O17: 28.89294895 | P17: ='Lens calcs'!G17/'Lens calcs'!N17 -> 2.517912395 | Q17: -24.67020896 | R17: 2.28809076 | S17: -1.05096313 | T17: 1.57093859 | U17: 65.32979104 | V17: 0.6557013425 | W17: 1.427551682 | X17: 9
A18: 10 | B18: 0.5366050518 | C18: 0.09461794862 | D18: =C$3*Input!M$12 -> 0.6162795425 | E18: 1.152884594 | F18: 0.09461794862 | G18: 1.156760755 | H18: 4.691784789 | I18: =Input!M$11*(COS(RADIANS(A18))) -> 1.398427009 | J18: =Input!M$11*(SIN(RADIANS(A18))) -> 0.2465804123 | K18: =Input!M$12 -> 1 | L18: 0.3984270093 | M18: 0.2465804123 | N18: 0.4685573406 | O18: 31.7527345 | P18: ='Lens calcs'!G18/'Lens calcs'!N18 -> 2.468770958 | Q18: -27.06094971 | R18: 2.198497511 | S18: -1.123137899 | T18: 1.540278994 | U18: 62.93905029 | V18: 0.7007315549 | W18: 1.371653989 | X18: 10
A19: 11 | B19: 0.5348720134 | C19: 0.1039685873 | D19: =C$3*Input!M$12 -> 0.6162795425 | E19: 1.151151556 | F19: 0.1039685873 | G19: 1.155837087 | H19: 5.160782465 | I19: =Input!M$11*(COS(RADIANS(A19))) -> 1.3939106 | J19: =Input!M$11*(SIN(RADIANS(A19))) -> 0.2709487734 | K19: =Input!M$12 -> 1 | L19: 0.3939106005 | M19: 0.2709487734 | N19: 0.4780991519 | O19: 34.52187802 | P19: ='Lens calcs'!G19/'Lens calcs'!N19 -> 2.417567742 | Q19: -29.36109556 | R19: 2.107023766 | S19: -1.185362661 | T19: 1.508333042 | U19: 60.63890444 | V19: 0.7395539065 | W19: 1.314583046 | X19: 11
A20: 12 | B20: 0.5329760477 | C20: 0.1132875562 | D20: =C$3*Input!M$12 -> 0.6162795425 | E20: 1.14925559 | F20: 0.1132875562 | G20: 1.154825737 | H20: 5.629728193 | I20: =Input!M$11*(COS(RADIANS(A20))) -> 1.388969593 | J20: =Input!M$11*(SIN(RADIANS(A20))) -> 0.295234601 | K20: =Input!M$12 -> 1 | L20: 0.388969593 | M20: 0.295234601 | N20: 0.4883244965 | O20: 37.19912246 | P20: ='Lens calcs'!G20/'Lens calcs'!N20 -> 2.364873654 | Q20: -31.56939427 | R20: 2.014888223 | S20: -1.238084346 | T20: 1.475456927 | U20: 58.43060573 | V20: 0.7724472393 | W20: 1.257099203 | X20: 12
A21: 13 | B21: 0.5309177324 | C21: 0.1225720165 | D21: =C$3*Input!M$12 -> 0.6162795425 | E21: 1.147197275 | F21: 0.1225720165 | G21: 1.153726782 | H21: 6.098617119 | I21: =Input!M$11*(COS(RADIANS(A21))) -> 1.383605492 | J21: =Input!M$11*(SIN(RADIANS(A21))) -> 0.3194304972 | K21: =Input!M$12 -> 1 | L21: 0.383605492 | M21: 0.3194304972 | N21: 0.4991883572 | O21: 39.78434335 | P21: ='Lens calcs'!G21/'Lens calcs'!N21 -> 2.311205309 | Q21: -33.68572623 | R21: 1.923136192 | S21: -1.281880326 | T21: 1.441972969 | U21: 56.31427377 | V21: 0.7997717781 | W21: 1.199854635 | X21: 13
A22: 14 | B22: 0.5286976944 | C22: 0.1318191403 | D22: =C$3*Input!M$12 -> 0.6162795425 | E22: 1.144977237 | F22: 0.1318191403 | G22: 1.152540307 | H22: 6.567444354 | I22: =Input!M$11*(COS(RADIANS(A22))) -> 1.377819931 | J22: =Input!M$11*(SIN(RADIANS(A22))) -> 0.3435290918 | K22: =Input!M$12 -> 1 | L22: 0.3778199313 | M22: 0.3435290918 | N22: 0.5106467834 | O22: 42.27837374 | P22: ='Lens calcs'!G22/'Lens calcs'!N22 -> 2.257020595 | Q22: -35.71092939 | R22: 1.832637977 | S22: -1.317414139 | T22: 1.408166845 | U22: 54.28907061 | V22: 0.8219415076 | W22: 1.14339233 | X22: 14
A23: 15 | B23: 0.52631661 | C23: 0.1410261106 | D23: =C$3*Input!M$12 -> 0.6162795425 | E23: 1.142596152 | F23: 0.1410261106 | G23: 1.151266403 | H23: 7.036204969 | I23: =Input!M$11*(COS(RADIANS(A23))) -> 1.371614673 | J23: =Input!M$11*(SIN(RADIANS(A23))) -> 0.367523044 | K23: =Input!M$12 -> 1 | L23: 0.3716146733 | M23: 0.367523044 | N23: 0.5226573001 | O23: 44.68283219 | P23: ='Lens calcs'!G23/'Lens calcs'!N23 -> 2.202717542 | Q23: -37.64662722 | R23: 1.744095991 | S23: -1.345397244 | T23: 1.374286889 | U23: 52.35337278 | V23: 0.8394003119 | W23: 1.088150527 | X23: 15
A24: 30 | B24: 0.4718825631 | C24: 0.2724415248 | D24: =C$3*Input!M$12 -> 0.6162795425 | E24: 1.088162106 | F24: 0.2724415248 | G24: 1.121749149 | H24: 14.0561138 | I24: =Input!M$11*(COS(RADIANS(A24))) -> 1.229756073 | J24: =Input!M$11*(SIN(RADIANS(A24))) -> 0.71 | K24: =Input!M$12 -> 1 | L24: 0.2297560734 | M24: 0.71 | N24: 0.7462491898 | O24: 72.06841377 | P24: ='Lens calcs'!G24/'Lens calcs'!N24 -> 1.503183071 | Q24: -58.01229997 | R24: 0.796291987 | S24: -1.274942515 | T24: 0.9378437071 | U24: 31.98770003 | V24: 0.7954432414 | W24: 0.4968106969 | X24: 30
A25: 45 | B25: 0.3852904994 | C25: 0.3852904994 | D25: =C$3*Input!M$12 -> 0.6162795425 | E25: 1.001570042 | F25: 0.3852904994 | G25: 1.073122229 | H25: 21.04106174 | I25: =Input!M$11*(COS(RADIANS(A25))) -> 1.004091629 | J25: =Input!M$11*(SIN(RADIANS(A25))) -> 1.004091629 | K25: =Input!M$12 -> 1 | L25: 0.004091629285 | M25: 1.004091629 | N25: 1.004099966 | O25: 89.76652351 | P25: ='Lens calcs'!G25/'Lens calcs'!N25 -> 1.068740429 | Q25: -68.72546176 | R25: 0.3877787409 | S25: -0.9959085066 | T25: 0.6667926919 | U25: 21.27453824 | V25: 0.6213524779 | W25: 0.2419371659 | X25: 45
A26: 60 | B26: 0.2724415248 | C26: 0.4718825631 | D26: =C$3*Input!M$12 -> 0.6162795425 | E26: 0.8887210673 | F26: 0.4718825631 | G26: 1.00622974 | H26: 27.96687767 | I26: =Input!M$11*(COS(RADIANS(A26))) -> 0.71 | J26: =Input!M$11*(SIN(RADIANS(A26))) -> 1.229756073 | K26: =Input!M$12 -> 1 | L26: -0.29 | M26: 1.229756073 | N26: 1.263487238 | O26: 103.2690192 | P26: ='Lens calcs'!G26/'Lens calcs'!N26 -> 0.7963909009 | Q26: -75.30214156 | R26: 0.2020617254 | S26: -0.7703307901 | T26: 0.4968724098 | U26: 14.69785844 | V26: 0.4806133717 | W26: 0.1260673575 | X26: 60
A27: 75 | B27: 0.1410261106 | C27: 0.52631661 | D27: =C$3*Input!M$12 -> 0.6162795425 | E27: 0.7573056531 | F27: 0.52631661 | G27: 0.9222369685 | H27: 34.79874857 | I27: =Input!M$11*(COS(RADIANS(A27))) -> 0.367523044 | J27: =Input!M$11*(SIN(RADIANS(A27))) -> 1.371614673 | K27: =Input!M$12 -> 1 | L27: -0.632476956 | M27: 1.371614673 | N27: 1.510415146 | O27: 114.7553028 | P27: ='Lens calcs'!G27/'Lens calcs'!N27 -> 0.6105850906 | Q27: -79.95655423 | R27: 0.1064829133 | S27: -0.601228361 | T27: 0.380947202 | U27: 10.04344577 | V27: 0.3751094899 | W27: 0.06643524141 | X27: 75
A28: 90 | B28: 3.337813132e-17 | C28: 0.5448830497 | D28: =C$3*Input!M$12 -> 0.6162795425 | E28: 0.6162795425 | F28: 0.5448830497 | G28: 0.8226165646 | H28: 41.48147969 | I28: =Input!M$11*(COS(RADIANS(A28))) -> 8.69855403e-17 | J28: =Input!M$11*(SIN(RADIANS(A28))) -> 1.42 | K28: =Input!M$12 -> 1 | L28: -1 | M28: 1.42 | N28: 1.736778627 | O28: 125.1541776 | P28: ='Lens calcs'!G28/'Lens calcs'!N28 -> 0.4736450298 | Q28: -83.67269794 | R28: 0.05219943909 | S28: -0.4707598462 | T28: 0.2955095884 | U28: 6.327302055 | V28: 0.2937095074 | W28: 0.03256750054 | X28: 90
A29: 105 | B29: -0.1410261106 | C29: 0.52631661 | D29: =C$3*Input!M$12 -> 0.6162795425 | E29: 0.4752534319 | F29: 0.52631661 | G29: 0.7091367981 | H29: 47.91859132 | I29: =Input!M$11*(COS(RADIANS(A29))) -> -0.367523044 | J29: =Input!M$11*(SIN(RADIANS(A29))) -> 1.371614673 | K29: =Input!M$12 -> 1 | L29: -1.367523044 | M29: 1.371614673 | N29: 1.936865015 | O29: 134.9144136 | P29: ='Lens calcs'!G29/'Lens calcs'!N29 -> 0.3661260813 | Q29: -86.99582229 | R29: 0.01918821797 | S29: -0.3656229201 | T29: 0.2284279593 | U29: 3.004177715 | V29: 0.2281140344 | W29: 0.01197162862 | X29: 105
A30: 120 | B30: -0.2724415248 | C30: 0.4718825631 | D30: =C$3*Input!M$12 -> 0.6162795425 | E30: 0.3438380176 | F30: 0.4718825631 | G30: 0.5838644841 | H30: 53.92098526 | I30: =Input!M$11*(COS(RADIANS(A30))) -> -0.71 | J30: =Input!M$11*(SIN(RADIANS(A30))) -> 1.229756073 | K30: =Input!M$12 -> 1 | L30: -1.71 | M30: 1.229756073 | N30: 2.106276335 | O30: 144.2779884 | P30: ='Lens calcs'!G30/'Lens calcs'!N30 -> 0.2772022238 | Q30: -90.35700315 | R30: -0.001727202742 | S30: -0.2771968428 | T30: 0.1729479038 | U30: -0.3570031527 | V30: 0.1729445466 | W30: -0.001077610741 | X30: 120
A31: 135 | B31: -0.3852904994 | C31: 0.3852904994 | D31: =C$3*Input!M$12 -> 0.6162795425 | E31: 0.2309890431 | F31: 0.3852904994 | G31: 0.4492267879 | H31: 59.05650448 | I31: =Input!M$11*(COS(RADIANS(A31))) -> -1.004091629 | J31: =Input!M$11*(SIN(RADIANS(A31))) -> 1.004091629 | K31: =Input!M$12 -> 1 | L31: -2.004091629 | M31: 1.004091629 | N31: 2.241558221 | O31: 153.388177 | P31: ='Lens calcs'!G31/'Lens calcs'!N31 -> 0.2004082623 | Q31: -94.33167256 | R31: -0.01513682599 | S31: -0.1998358028 | T31: 0.1250357533 | U31: -4.331672562 | V31: 0.1246785929 | W31: -0.00944394417 | X31: 135
A32: 150 | B32: -0.4718825631 | C32: 0.2724415248 | D32: =C$3*Input!M$12 -> 0.6162795425 | E32: 0.1443969794 | F32: 0.2724415248 | G32: 0.3083421348 | H32: 62.07592246 | I32: =Input!M$11*(COS(RADIANS(A32))) -> -1.229756073 | J32: =Input!M$11*(SIN(RADIANS(A32))) -> 0.71 | K32: =Input!M$12 -> 1 | L32: -2.229756073 | M32: 0.71 | N32: 2.340066697 | O32: 162.3374594 | P32: ='Lens calcs'!G32/'Lens calcs'!N32 -> 0.1317663873 | Q32: -100.261537 | R32: -0.02347308642 | S32: -0.1296587639 | T32: 0.08220973185 | U32: -10.26153695 | V32: 0.08089477465 | W32: -0.01464498025 | X32: 150
A33: 165 | B33: -0.52631661 | C33: 0.1410261106 | D33: =C$3*Input!M$12 -> 0.6162795425 | E33: 0.08996293248 | F33: 0.1410261106 | G33: 0.167277294 | H33: 57.46551042 | I33: =Input!M$11*(COS(RADIANS(A33))) -> -1.371614673 | J33: =Input!M$11*(SIN(RADIANS(A33))) -> 0.367523044 | K33: =Input!M$12 -> 1 | L33: -2.371614673 | M33: 0.367523044 | N33: 2.399922779 | O33: 171.1910891 | P33: ='Lens calcs'!G33/'Lens calcs'!N33 -> 0.06970111516 | Q33: -113.7255786 | R33: -0.02804469794 | S33: -0.06381019019 | T33: 0.04348688693 | U33: -23.72557864 | V33: 0.03981150831 | W33: -0.01749723237 | X33: 165
A34: 180 | B34: -0.5448830497 | C34: 6.675626264e-17 | D34: =C$3*Input!M$12 -> 0.6162795425 | E34: 0.07139649279 | F34: 6.675626264e-17 | G34: 0.07139649279 | H34: 5.35719887e-14 | I34: =Input!M$11*(COS(RADIANS(A34))) -> -1.42 | J34: =Input!M$11*(SIN(RADIANS(A34))) -> 1.739710806e-16 | K34: =Input!M$12 -> 1 | L34: -2.42 | M34: 1.739710806e-16 | N34: 2.42 | O34: 180 | P34: ='Lens calcs'!G34/'Lens calcs'!N34 -> 0.02950268297 | Q34: -180 | R34: -0.02950268297 | S34: -2.981816299e-17 | T34: 0.01840687678 | U34: -90 | V34: 1.747614857e-17 | W34: -0.01840687678 | X34: 180
A35: 195 | B35: -0.52631661 | C35: -0.1410261106 | D35: =C$3*Input!M$12 -> 0.6162795425 | E35: 0.08996293248 | F35: -0.1410261106 | G35: 0.167277294 | H35: -57.46551042 | I35: =Input!M$11*(COS(RADIANS(A35))) -> -1.371614673 | J35: =Input!M$11*(SIN(RADIANS(A35))) -> -0.367523044 | K35: =Input!M$12 -> 1 | L35: -2.371614673 | M35: -0.367523044 | N35: 2.399922779 | O35: =-DEGREES(ACOS(L35/N35)) -> -171.1910891 | P35: ='Lens calcs'!G35/'Lens calcs'!N35 -> 0.06970111516 | Q35: 113.7255786 | R35: -0.02804469794 | S35: 0.06381019019 | T35: 0.04348688693 | U35: 203.7255786 | V35: -0.03981150831 | W35: -0.01749723237 | X35: 195
A36: 210 | B36: -0.4718825631 | C36: -0.2724415248 | D36: =C$3*Input!M$12 -> 0.6162795425 | E36: 0.1443969794 | F36: -0.2724415248 | G36: 0.3083421348 | H36: -62.07592246 | I36: =Input!M$11*(COS(RADIANS(A36))) -> -1.229756073 | J36: =Input!M$11*(SIN(RADIANS(A36))) -> -0.71 | K36: =Input!M$12 -> 1 | L36: -2.229756073 | M36: -0.71 | N36: 2.340066697 | O36: =-DEGREES(ACOS(L36/N36)) -> -162.3374594 | P36: ='Lens calcs'!G36/'Lens calcs'!N36 -> 0.1317663873 | Q36: 100.261537 | R36: -0.02347308642 | S36: 0.1296587639 | T36: 0.08220973185 | U36: 190.261537 | V36: -0.08089477465 | W36: -0.01464498025 | X36: 210
A37: 225 | B37: -0.3852904994 | C37: -0.3852904994 | D37: =C$3*Input!M$12 -> 0.6162795425 | E37: 0.2309890431 | F37: -0.3852904994 | G37: 0.4492267879 | H37: -59.05650448 | I37: =Input!M$11*(COS(RADIANS(A37))) -> -1.004091629 | J37: =Input!M$11*(SIN(RADIANS(A37))) -> -1.004091629 | K37: =Input!M$12 -> 1 | L37: -2.004091629 | M37: -1.004091629 | N37: 2.241558221 | O37: -153.388177 | P37: ='Lens calcs'!G37/'Lens calcs'!N37 -> 0.2004082623 | Q37: 94.33167256 | R37: -0.01513682599 | S37: 0.1998358028 | T37: 0.1250357533 | U37: 184.3316726 | V37: -0.1246785929 | W37: -0.00944394417 | X37: 225
A38: 240 | B38: -0.2724415248 | C38: -0.4718825631 | D38: =C$3*Input!M$12 -> 0.6162795425 | E38: 0.3438380176 | F38: -0.4718825631 | G38: 0.5838644841 | H38: -53.92098526 | I38: =Input!M$11*(COS(RADIANS(A38))) -> -0.71 | J38: =Input!M$11*(SIN(RADIANS(A38))) -> -1.229756073 | K38: =Input!M$12 -> 1 | L38: -1.71 | M38: -1.229756073 | N38: 2.106276335 | O38: -144.2779884 | P38: ='Lens calcs'!G38/'Lens calcs'!N38 -> 0.2772022238 | Q38: 90.35700315 | R38: -0.001727202742 | S38: 0.2771968428 | T38: 0.1729479038 | U38: 180.3570032 | V38: -0.1729445466 | W38: -0.001077610741 | X38: 240
A39: 250 | B39: -0.1863609787 | C39: -0.512022581 | D39: =C$3*Input!M$12 -> 0.6162795425 | E39: 0.4299185637 | F39: -0.512022581 | G39: 0.6685784134 | H39: -49.98157873 | I39: =Input!M$11*(COS(RADIANS(A39))) -> -0.4856686035 | J39: =Input!M$11*(SIN(RADIANS(A39))) -> -1.334363522 | K39: =Input!M$12 -> 1 | L39: -1.485668604 | M39: -1.334363522 | N39: 1.996931949 | O39: -138.0711843 | P39: ='Lens calcs'!G39/'Lens calcs'!N39 -> 0.3348028028 | Q39: 88.08960553 | R39: 0.01116115224 | S39: 0.3346167143 | T39: 0.2088852036 | U39: 178.0896055 | V39: -0.2087691019 | W39: 0.006963500715 | X39: 250
A40: 260 | B40: -0.09461794862 | C40: -0.5366050518 | D40: =C$3*Input!M$12 -> 0.6162795425 | E40: 0.5216615939 | F40: -0.5366050518 | G40: 0.7483821217 | H40: -45.80900232 | I40: =Input!M$11*(COS(RADIANS(A40))) -> -0.2465804123 | J40: =Input!M$11*(SIN(RADIANS(A40))) -> -1.398427009 | K40: =Input!M$12 -> 1 | L40: -1.246580412 | M40: -1.398427009 | N40: 1.873382189 | O40: -131.7143268 | P40: ='Lens calcs'!G40/'Lens calcs'!N40 -> 0.3994818176 | Q40: 85.90532444 | R40: 0.02852490042 | S40: 0.3984621094 | T40: 0.249238776 | U40: 175.9053244 | V40: -0.2486025748 | W40: 0.01779683318 | X40: 260
A41: 270 | B41: =D$3*(COS(RADIANS(A41))) -> -1.00134394e-16 | C41: =D$3*(SIN(RADIANS(A41))) -> -0.5448830497 | D41: =C$3*Input!M$12 -> 0.6162795425 | E41: =B41+D41 -> 0.6162795425 | F41: =C41 -> -0.5448830497 | G41: =((E41^2)+(F41^2))^0.5 -> 0.8226165646 | H41: =DEGREES(ATAN(F41/E41)) -> -41.48147969 | I41: =Input!M$11*(COS(RADIANS(A41))) -> -2.609566209e-16 | J41: =Input!M$11*(SIN(RADIANS(A41))) -> -1.42 | K41: =Input!M$12 -> 1 | L41: =I41-K41 -> -1 | M41: =J41 -> -1.42 | N41: =((L41^2)+(M41^2))^0.5 -> 1.736778627 | O41: =-DEGREES(ACOS(L41/N41)) -> -125.1541776 | P41: ='Lens calcs'!G41/'Lens calcs'!N41 -> 0.4736450298 | Q41: =H41-O41 -> 83.67269794 | R41: =P41*(COS(RADIANS(Q41))) -> 0.05219943909 | S41: =P41*(SIN(RADIANS(Q41))) -> 0.4707598462 | T41: =P41*A$3 -> 0.2955095884 | U41: 173.6726979 | V41: =T41*COS(RADIANS(U41)) -> -0.2937095074 | W41: =T41*SIN(RADIANS(U41)) -> 0.03256750054 | X41: 270
A43: 1.0 calculation
B44: Step 1 | D44: Step 2 | E44: Step 3 | I44: Step 4 | P44: Step 5
A45: Angle | B45: X | C45: Y | D45: X | E45: X | F45: Y | G45: Mag | H45: Angle | I45: X | J45: Y | K45: Eb | P45: Magitude | Q45: Angle | R45: R | S45: jX | T45: Mag | U45: Angle | V45: Zr (plot) | W45: Zx (plot) | X45: Angle
A46: 0 | B46: =E$3*(COS(RADIANS(A46))) -> 0.3837204575 | C46: =E$3*(SIN(RADIANS(A46))) -> 0 | D46: =C$3*Input!M$12 -> 0.6162795425 | E46: =B46+D46 -> 1 | F46: =C46 -> 0 | G46: =((E46^2)+(F46^2))^0.5 -> 1 | H46: =DEGREES(ATAN(F46/E46)) -> 0 | I46: =Input!M$16*(COS(RADIANS(A46))) -> 1 | J46: =Input!M$16*(SIN(RADIANS(A46))) -> 0 | K46: =Input!M$12 -> 1 | L46: =I46-K46 -> 0 | M46: =J46 -> 0 | N46: =((L46^2)+(M46^2))^0.5 -> 0 | X46: 0
A47: 1 | B47: =E$3*(COS(RADIANS(A47))) -> 0.383662015 | C47: =E$3*(SIN(RADIANS(A47))) -> 0.006696845383 | D47: =C$3*Input!M$12 -> 0.6162795425 | E47: =B47+D47 -> 0.9999415575 | F47: =C47 -> 0.006696845383 | G47: =((E47^2)+(F47^2))^0.5 -> 0.9999639824 | H47: =DEGREES(ATAN(F47/E47)) -> 0.3837176654 | I47: =Input!M$16*(COS(RADIANS(A47))) -> 0.9998476952 | J47: =Input!M$16*(SIN(RADIANS(A47))) -> 0.01745240644 | K47: =Input!M$12 -> 1 | L47: =I47-K47 -> -0.0001523048436 | M47: =J47 -> 0.01745240644 | N47: =((L47^2)+(M47^2))^0.5 -> 0.017453071 | O47: =DEGREES(ACOS(L47/N47)) -> 90.5 | P47: ='Lens calcs'!G47/'Lens calcs'!N47 -> 57.29444306 | Q47: =H47-O47 -> -90.11628233 | R47: =P47*(COS(RADIANS(Q47))) -> -0.1162795425 | S47: =P47*(SIN(RADIANS(Q47))) -> -57.29432506 | T47: =P47*A$3 -> 35.74629991 | U47: =Q47+U$3 -> -0.1162823346 | V47: =T47*COS(RADIANS(U47)) -> 35.7462263 | W47: =T47*SIN(RADIANS(U47)) -> -0.07254740909 | X47: 1
A48: 2 | B48: 0.3834867054 | C48: 0.01339165084 | D48: =C$3*Input!M$12 -> 0.6162795425 | E48: 0.9997662479 | F48: 0.01339165084 | G48: 0.999855933 | H48: 0.7674185758 | I48: =Input!M$16*(COS(RADIANS(A48))) -> 0.999390827 | J48: =Input!M$16*(SIN(RADIANS(A48))) -> 0.0348994967 | K48: =Input!M$12 -> 1 | L48: -0.0006091729809 | M48: 0.0348994967 | N48: 0.03490481287 | O48: 91 | P48: ='Lens calcs'!G48/'Lens calcs'!N48 -> 28.64521682 | Q48: -90.23258142 | R48: -0.1162795425 | S48: -28.64498082 | T48: 17.87189921 | U48: -0.2325814242 | V48: =T48*COS(RADIANS(U48)) -> 17.87175196 | W48: =T48*SIN(RADIANS(U48)) -> -0.07254740909 | X48: 2
A49: 3 | B49: 0.383194582 | C49: 0.02008237707 | D49: =C$3*Input!M$12 -> 0.6162795425 | E49: 0.9994741244 | F49: 0.02008237707 | G49: 0.9996758611 | H49: 1.151085967 | I49: =Input!M$16*(COS(RADIANS(A49))) -> 0.9986295348 | J49: =Input!M$16*(SIN(RADIANS(A49))) -> 0.05233595624 | K49: =Input!M$12 -> 1 | L49: -0.001370465245 | M49: 0.05233595624 | N49: 0.05235389662 | O49: 91.5 | P49: ='Lens calcs'!G49/'Lens calcs'!N49 -> 19.0945837 | Q49: -90.34891403 | R49: -0.1162795425 | S49: -19.09422965 | T49: 11.91320972 | U49: -0.3489140329 | V49: 11.91298882 | W49: -0.07254740909 | X49: 3
A50: 4 | B50: 0.3827857338 | C50: 0.02676698602 | D50: =C$3*Input!M$12 -> 0.6162795425 | E50: 0.9990652763 | F50: 0.02676698602 | G50: 0.9994237829 | H50: 1.534703056 | I50: =Input!M$16*(COS(RADIANS(A50))) -> 0.9975640503 | J50: =Input!M$16*(SIN(RADIANS(A50))) -> 0.06975647374 | K50: =Input!M$12 -> 1 | L50: -0.00243594974 | M50: 0.06975647374 | N50: 0.06979899341 | O50: 92 | P50: ='Lens calcs'!G50/'Lens calcs'!N50 -> 14.3185988 | Q50: -90.46529694 | R50: -0.1162795425 | S50: -14.31812664 | T50: 8.933447985 | U50: -0.4652969438 | V50: 8.933153406 | W50: -0.07254740909 | X50: 4
A51: 5 | B51: 0.3822602853 | C51: 0.03344344148 | D51: =C$3*Input!M$12 -> 0.6162795425 | E51: 0.9985398278 | F51: 0.03344344148 | G51: 0.9990997205 | H51: 1.918253032 | I51: =Input!M$16*(COS(RADIANS(A51))) -> 0.9961946981 | J51: =Input!M$16*(SIN(RADIANS(A51))) -> 0.08715574275 | K51: =Input!M$12 -> 1 | L51: -0.003805301908 | M51: 0.08715574275 | N51: 0.08723877473 | O51: 92.5 | P51: ='Lens calcs'!G51/'Lens calcs'!N51 -> 11.4524731 | Q51: -90.58174697 | R51: -0.1162795425 | S51: -11.45188277 | T51: 7.145257309 | U51: -0.5817469681 | V51: 7.144889004 | W51: -0.07254740909 | X51: 5
A52: 6 | B52: 0.3816183967 | C52: 0.04010970975 | D52: =C$3*Input!M$12 -> 0.6162795425 | E52: 0.9978979392 | F52: 0.04010970975 | G52: 0.9987037027 | H52: 2.301719045 | I52: =Input!M$16*(COS(RADIANS(A52))) -> 0.9945218954 | J52: =Input!M$16*(SIN(RADIANS(A52))) -> 0.1045284633 | K52: =Input!M$12 -> 1 | L52: -0.005478104632 | M52: 0.1045284633 | N52: 0.1046719125 | O52: 93 | P52: ='Lens calcs'!G52/'Lens calcs'!N52 -> 9.54127692 | Q52: -90.69828095 | R52: -0.1162795425 | S52: -9.540568344 | T52: 5.952852111 | U52: -0.6982809547 | V52: 5.952410027 | W52: -0.07254740909 | X52: 6
A53: 7 | B53: 0.3808602634 | C53: 0.04676376021 | D53: =C$3*Input!M$12 -> 0.6162795425 | E53: 0.9971398059 | F53: 0.04676376021 | G53: 0.9982357646 | H53: 2.6850842 | I53: =Input!M$16*(COS(RADIANS(A53))) -> 0.9925461516 | J53: =Input!M$16*(SIN(RADIANS(A53))) -> 0.1218693434 | K53: =Input!M$12 -> 1 | L53: -0.007453848359 | M53: 0.1218693434 | N53: 0.1220970791 | O53: 93.5 | P53: ='Lens calcs'!G53/'Lens calcs'!N53 -> 8.175754672 | Q53: -90.8149158 | R53: -0.1162795425 | S53: -8.174927738 | T53: 5.100895705 | U53: -0.8149157997 | V53: 5.100379777 | W53: -0.07254740909 | X53: 7
A54: 8 | B54: 0.3799861164 | C54: 0.05340356598 | D54: =C$3*Input!M$12 -> 0.6162795425 | E54: 0.9962656589 | F54: 0.05340356598 | G54: 0.9976959476 | H54: 3.068331544 | I54: =Input!M$16*(COS(RADIANS(A54))) -> 0.9902680687 | J54: =Input!M$16*(SIN(RADIANS(A54))) -> 0.139173101 | K54: =Input!M$12 -> 1 | L54: -0.009731931258 | M54: 0.139173101 | N54: 0.1395129475 | O54: 94 | P54: ='Lens calcs'!G54/'Lens calcs'!N54 -> 7.151278542 | Q54: -90.93166846 | R54: -0.1162795425 | S54: -7.150333128 | T54: 4.461719739 | U54: -0.9316684556 | V54: 4.461129891 | W54: -0.07254740909 | X54: 8
A55: 9 | B55: 0.3789962219 | C55: 0.0600271045 | D55: =C$3*Input!M$12 -> 0.6162795425 | E55: 0.9952757644 | F55: 0.0600271045 | G55: 0.9970842996 | H55: 3.451444059 | I55: =Input!M$16*(COS(RADIANS(A55))) -> 0.9876883406 | J55: =Input!M$16*(SIN(RADIANS(A55))) -> 0.156434465 | K55: =Input!M$12 -> 1 | L55: -0.0123116594 | M55: 0.156434465 | N55: 0.1569181915 | O55: 94.5 | P55: ='Lens calcs'!G55/'Lens calcs'!N55 -> 6.354166399 | Q55: -91.04855594 | R55: -0.1162795425 | S55: -6.353102368 | T55: 3.964397343 | U55: -1.048555941 | V55: 3.963733488 | W55: -0.07254740909 | X55: 9
A56: 10 | B56: 0.3778908816 | C56: 0.06663235818 | D56: =C$3*Input!M$12 -> 0.6162795425 | E56: 0.994170424 | F56: 0.06663235818 | G56: 0.9964008747 | H56: 3.834404648 | I56: =Input!M$16*(COS(RADIANS(A56))) -> 0.984807753 | J56: =Input!M$16*(SIN(RADIANS(A56))) -> 0.1736481777 | K56: =Input!M$12 -> 1 | L56: -0.01519224699 | M56: 0.1736481777 | N56: 0.1743114855 | O56: 95 | P56: ='Lens calcs'!G56/'Lens calcs'!N56 -> 5.716208957 | Q56: -91.16559535 | R56: -0.1162795425 | S56: -5.715026151 | T56: 3.566372389 | U56: -1.165595352 | V56: 3.56563443 | W56: -0.07254740909 | X56: 10
A57: 11 | B57: 0.3766704319 | C57: 0.07321731501 | D57: =C$3*Input!M$12 -> 0.6162795425 | E57: 0.9929499744 | F57: 0.07321731501 | G57: 0.9956457336 | H57: 4.217196132 | I57: =Input!M$16*(COS(RADIANS(A57))) -> 0.9816271834 | J57: =Input!M$16*(SIN(RADIANS(A57))) -> 0.1908089954 | K57: =Input!M$12 -> 1 | L57: -0.01837281655 | M57: 0.1908089954 | N57: 0.191691505 | O57: 95.5 | P57: ='Lens calcs'!G57/'Lens calcs'!N57 -> 5.194000295 | Q57: -91.28280387 | R57: -0.1162795425 | S57: -5.19269854 | T57: 3.240563698 | U57: -1.282803868 | V57: 3.239751527 | W57: -0.07254740909 | X57: 11
A58: 12 | B58: 0.3753352449 | C58: 0.07977996912 | D58: =C$3*Input!M$12 -> 0.6162795425 | E58: 0.9916147874 | F58: 0.07977996912 | G58: 0.9948189433 | H58: 4.599801234 | I58: =Input!M$16*(COS(RADIANS(A58))) -> 0.9781476007 | J58: =Input!M$16*(SIN(RADIANS(A58))) -> 0.2079116908 | K58: =Input!M$12 -> 1 | L58: -0.02185239927 | M58: 0.2079116908 | N58: 0.2090569265 | O58: 96 | P58: ='Lens calcs'!G58/'Lens calcs'!N58 -> 4.758603122 | Q58: -91.40019877 | R58: -0.1162795425 | S58: -4.757182227 | T58: 2.968917146 | U58: -1.400198766 | V58: 2.968030642 | W58: -0.07254740909 | X58: 12
A59: 13 | B59: 0.3738857271 | C59: 0.08631832149 | D59: =C$3*Input!M$12 -> 0.6162795425 | E59: 0.9901652695 | F59: 0.08631832149 | G59: 0.9939205771 | H59: 4.982202573 | I59: =Input!M$16*(COS(RADIANS(A59))) -> 0.9743700648 | J59: =Input!M$16*(SIN(RADIANS(A59))) -> 0.2249510543 | K59: =Input!M$12 -> 1 | L59: -0.02562993521 | M59: 0.2249510543 | N59: 0.2264064275 | O59: 96.5 | P59: ='Lens calcs'!G59/'Lens calcs'!N59 -> 4.389983924 | Q59: -91.51779743 | R59: -0.1162795425 | S59: -4.388443678 | T59: 2.738933718 | U59: -1.517797427 | V59: 2.737972751 | W59: -0.07254740909 | X59: 13
A60: 14 | B60: 0.37232232 | C60: 0.09283038046 | D60: =C$3*Input!M$12 -> 0.6162795425 | E60: 0.9886018625 | F60: 0.09283038046 | G60: 0.9929507148 | H60: 5.36438265 | I60: =Input!M$16*(COS(RADIANS(A60))) -> 0.9702957263 | J60: =Input!M$16*(SIN(RADIANS(A60))) -> 0.2419218956 | K60: =Input!M$12 -> 1 | L60: -0.02970427372 | M60: 0.2419218956 | N60: 0.2437386868 | O60: 97 | P60: ='Lens calcs'!G60/'Lens calcs'!N60 -> 4.073833037 | Q60: -91.63561735 | R60: -0.1162795425 | S60: -4.072173214 | T60: 2.541685542 | U60: -1.63561735 | V60: 2.540649969 | W60: -0.07254740909 | X60: 14
A61: 15 | B61: 0.3706455 | C61: 0.0993141624 | D61: =C$3*Input!M$12 -> 0.6162795425 | E61: 0.9869250425 | F61: 0.0993141624 | G61: 0.9919094426 | H61: 5.746323842 | I61: =Input!M$16*(COS(RADIANS(A61))) -> 0.9659258263 | J61: =Input!M$16*(SIN(RADIANS(A61))) -> 0.2588190451 | K61: =Input!M$12 -> 1 | L61: -0.03407417371 | M61: 0.2588190451 | N61: 0.2610523844 | O61: 97.5 | P61: ='Lens calcs'!G61/'Lens calcs'!N61 -> 3.799656704 | Q61: -91.75367616 | R61: -0.1162795425 | S61: -3.797877056 | T61: 2.370625507 | U61: -1.753676158 | V61: 2.369515175 | W61: -0.07254740909 | X61: 15
A62: 30 | B62: 0.3323116642 | C62: 0.1918602288 | D62: =C$3*Input!M$12 -> 0.6162795425 | E62: 0.9485912066 | F62: 0.1918602288 | G62: 0.9677993721 | H62: 11.43428021 | I62: =Input!M$16*(COS(RADIANS(A62))) -> 0.8660254038 | J62: =Input!M$16*(SIN(RADIANS(A62))) -> 0.5 | K62: =Input!M$12 -> 1 | L62: -0.1339745962 | M62: 0.5 | N62: 0.5176380902 | O62: 105 | P62: ='Lens calcs'!G62/'Lens calcs'!N62 -> 1.869644816 | Q62: -93.56571979 | R62: -0.1162795425 | S62: -1.866025404 | T62: 1.166481089 | U62: -3.565719789 | V62: 1.164222919 | W62: -0.07254740909 | X62: 30
A63: 45 | B63: 0.2713313376 | C63: 0.2713313376 | D63: =C$3*Input!M$12 -> 0.6162795425 | E63: 0.8876108801 | F63: 0.2713313376 | G63: 0.9281561125 | H63: 16.99772476 | I63: =Input!M$16*(COS(RADIANS(A63))) -> 0.7071067812 | J63: =Input!M$16*(SIN(RADIANS(A63))) -> 0.7071067812 | K63: =Input!M$12 -> 1 | L63: -0.2928932188 | M63: 0.7071067812 | N63: 0.7653668647 | O63: 112.5 | P63: ='Lens calcs'!G63/'Lens calcs'!N63 -> 1.212694402 | Q63: -95.50227524 | R63: -0.1162795425 | S63: -1.207106781 | T63: 0.7566063215 | U63: -5.502275245 | V63: 0.7531201758 | W63: -0.07254740909 | X63: 45
A64: 60 | B64: 0.1918602288 | C64: 0.3323116642 | D64: =C$3*Input!M$12 -> 0.6162795425 | E64: 0.8081397712 | F64: 0.3323116642 | G64: 0.8737968482 | H64: 22.35274322 | I64: =Input!M$16*(COS(RADIANS(A64))) -> 0.5 | J64: =Input!M$16*(SIN(RADIANS(A64))) -> 0.8660254038 | K64: =Input!M$12 -> 1 | L64: -0.5 | M64: 0.8660254038 | N64: 1 | O64: 120 | P64: ='Lens calcs'!G64/'Lens calcs'!N64 -> 0.8737968482 | Q64: -97.64725678 | R64: -0.1162795425 | S64: -0.8660254038 | T64: 0.5451663815 | U64: -7.647256784 | V64: 0.540317737 | W64: -0.07254740909 | X64: 60
A65: 75 | B65: 0.0993141624 | C65: 0.3706455 | D65: =C$3*Input!M$12 -> 0.6162795425 | E65: 0.7155937049 | F65: 0.3706455 | G65: 0.8058861192 | H65: 27.38213401 | I65: =Input!M$16*(COS(RADIANS(A65))) -> 0.2588190451 | J65: =Input!M$16*(SIN(RADIANS(A65))) -> 0.9659258263 | K65: =Input!M$12 -> 1 | L65: -0.7411809549 | M65: 0.9659258263 | N65: 1.217522858 | O65: 127.5 | P65: ='Lens calcs'!G65/'Lens calcs'!N65 -> 0.6619063567 | Q65: -100.117866 | R65: -0.1162795425 | S65: -0.6516126864 | T65: 0.4129668059 | U65: -10.11786599 | V65: 0.4065445316 | W65: -0.07254740909 | X65: 75
A66: 90 | B66: 2.350572628e-17 | C66: 0.3837204575 | D66: =C$3*Input!M$12 -> 0.6162795425 | E66: 0.6162795425 | F66: 0.3837204575 | G66: 0.72597649 | H66: 31.90805555 | I66: =Input!M$16*(COS(RADIANS(A66))) -> 6.125742275e-17 | J66: =Input!M$16*(SIN(RADIANS(A66))) -> 1 | K66: =Input!M$12 -> 1 | L66: -1 | M66: 1 | N66: 1.414213562 | O66: 135 | P66: ='Lens calcs'!G66/'Lens calcs'!N66 -> 0.513342899 | Q66: -103.0919445 | R66: -0.1162795425 | S66: -0.5 | T66: 0.3202772948 | U66: -13.09194445 | V66: 0.3119525909 | W66: -0.07254740909 | X66: 90
A67: 105 | B67: -0.0993141624 | C67: 0.3706455 | D67: =C$3*Input!M$12 -> 0.6162795425 | E67: 0.5169653801 | F67: 0.3706455 | G67: 0.6361063518 | H67: 35.63915599 | I67: =Input!M$16*(COS(RADIANS(A67))) -> -0.2588190451 | J67: =Input!M$16*(SIN(RADIANS(A67))) -> 0.9659258263 | K67: =Input!M$12 -> 1 | L67: -1.258819045 | M67: 0.9659258263 | N67: 1.586706681 | O67: 142.5 | P67: ='Lens calcs'!G67/'Lens calcs'!N67 -> 0.4008972544 | Q67: -106.860844 | R67: -0.1162795425 | S67: -0.383663494 | T67: 0.2501218744 | U67: -16.86084401 | V67: 0.239369642 | W67: -0.07254740909 | X67: 105
A68: 120 | B68: -0.1918602288 | C68: 0.3323116642 | D68: =C$3*Input!M$12 -> 0.6162795425 | E68: 0.4244193137 | F68: 0.3323116642 | G68: 0.5390387704 | H68: 38.0602194 | I68: =Input!M$16*(COS(RADIANS(A68))) -> -0.5 | J68: =Input!M$16*(SIN(RADIANS(A68))) -> 0.8660254038 | K68: =Input!M$12 -> 1 | L68: -1.5 | M68: 0.8660254038 | N68: 1.732050808 | O68: 150 | P68: ='Lens calcs'!G68/'Lens calcs'!N68 -> 0.3112141792 | Q68: -111.9397806 | R68: -0.1162795425 | S68: -0.2886751346 | T68: 0.1941681391 | U68: -21.9397806 | V68: 0.1801059123 | W68: -0.07254740909 | X68: 120
A69: 135 | B69: -0.2713313376 | C69: 0.2713313376 | D69: =C$3*Input!M$12 -> 0.6162795425 | E69: 0.3449482049 | F69: 0.2713313376 | G69: 0.4388735112 | H69: 38.18808533 | I69: =Input!M$16*(COS(RADIANS(A69))) -> -0.7071067812 | J69: =Input!M$16*(SIN(RADIANS(A69))) -> 0.7071067812 | K69: =Input!M$12 -> 1 | L69: -1.707106781 | M69: 0.7071067812 | N69: 1.847759065 | O69: 157.5 | P69: ='Lens calcs'!G69/'Lens calcs'!N69 -> 0.2375166327 | Q69: -119.3119147 | R69: -0.1162795425 | S69: -0.2071067812 | T69: 0.1481878579 | U69: -29.31191467 | V69: 0.129214994 | W69: -0.07254740909 | X69: 135
A70: 150 | B70: -0.3323116642 | C70: 0.1918602288 | D70: =C$3*Input!M$12 -> 0.6162795425 | E70: 0.2839678783 | F70: 0.1918602288 | G70: 0.3427070225 | H70: 34.04455771 | I70: =Input!M$16*(COS(RADIANS(A70))) -> -0.8660254038 | J70: =Input!M$16*(SIN(RADIANS(A70))) -> 0.5 | K70: =Input!M$12 -> 1 | L70: -1.866025404 | M70: 0.5 | N70: 1.931851653 | O70: 165 | P70: ='Lens calcs'!G70/'Lens calcs'!N70 -> 0.1773982086 | Q70: -130.9554423 | R70: -0.1162795425 | S70: -0.1339745962 | T70: 0.1106796616 | U70: -40.95544229 | V70: 0.08358744481 | W70: -0.07254740909 | X70: 150
A71: 165 | B71: -0.3706455 | C71: 0.0993141624 | D71: =C$3*Input!M$12 -> 0.6162795425 | E71: 0.2456340425 | F71: 0.0993141624 | G71: 0.2649516667 | H71: 22.01434949 | I71: =Input!M$16*(COS(RADIANS(A71))) -> -0.9659258263 | J71: =Input!M$16*(SIN(RADIANS(A71))) -> 0.2588190451 | K71: =Input!M$12 -> 1 | L71: -1.965925826 | M71: 0.2588190451 | N71: 1.982889723 | O71: 172.5 | P71: ='Lens calcs'!G71/'Lens calcs'!N71 -> 0.1336189621 | Q71: -150.4856505 | R71: -0.1162795425 | S71: -0.06582624879 | T71: 0.08336556283 | U71: -60.48565051 | V71: 0.04106933772 | W71: -0.07254740909 | X71: 165
A72: 180 | B72: -0.3837204575 | C72: 4.701145257e-17 | D72: =C$3*Input!M$12 -> 0.6162795425 | E72: 0.232559085 | F72: 4.701145257e-17 | G72: 0.232559085 | H72: 1.158225154e-14 | I72: =Input!M$16*(COS(RADIANS(A72))) -> -1 | J72: =Input!M$16*(SIN(RADIANS(A72))) -> 1.225148455e-16 | K72: =Input!M$12 -> 1 | L72: -2 | M72: 1.225148455e-16 | N72: 2 | O72: 180 | P72: ='Lens calcs'!G72/'Lens calcs'!N72 -> 0.1162795425 | Q72: -180 | R72: -0.1162795425 | S72: -1.424597018e-17 | T72: 0.07254740909 | U72: -90 | V72: 4.444067308e-18 | W72: -0.07254740909 | X72: 180
A73: 195 | B73: -0.3706455 | C73: -0.0993141624 | D73: =C$3*Input!M$12 -> 0.6162795425 | E73: 0.2456340425 | F73: -0.0993141624 | G73: 0.2649516667 | H73: -22.01434949 | I73: =Input!M$16*(COS(RADIANS(A73))) -> -0.9659258263 | J73: =Input!M$16*(SIN(RADIANS(A73))) -> -0.2588190451 | K73: =Input!M$12 -> 1 | L73: -1.965925826 | M73: -0.2588190451 | N73: 1.982889723 | O73: =-DEGREES(ACOS(L73/N73)) -> -172.5 | P73: ='Lens calcs'!G73/'Lens calcs'!N73 -> 0.1336189621 | Q73: 150.4856505 | R73: -0.1162795425 | S73: 0.06582624879 | T73: 0.08336556283 | U73: 240.4856505 | V73: -0.04106933772 | W73: -0.07254740909 | X73: 195
A74: 210 | B74: -0.3323116642 | C74: -0.1918602288 | D74: =C$3*Input!M$12 -> 0.6162795425 | E74: 0.2839678783 | F74: -0.1918602288 | G74: 0.3427070225 | H74: -34.04455771 | I74: =Input!M$16*(COS(RADIANS(A74))) -> -0.8660254038 | J74: =Input!M$16*(SIN(RADIANS(A74))) -> -0.5 | K74: =Input!M$12 -> 1 | L74: -1.866025404 | M74: -0.5 | N74: 1.931851653 | O74: =-DEGREES(ACOS(L74/N74)) -> -165 | P74: ='Lens calcs'!G74/'Lens calcs'!N74 -> 0.1773982086 | Q74: 130.9554423 | R74: -0.1162795425 | S74: 0.1339745962 | T74: 0.1106796616 | U74: 220.9554423 | V74: -0.08358744481 | W74: -0.07254740909 | X74: 210
A75: 225 | B75: -0.2713313376 | C75: -0.2713313376 | D75: =C$3*Input!M$12 -> 0.6162795425 | E75: 0.3449482049 | F75: -0.2713313376 | G75: 0.4388735112 | H75: -38.18808533 | I75: =Input!M$16*(COS(RADIANS(A75))) -> -0.7071067812 | J75: =Input!M$16*(SIN(RADIANS(A75))) -> -0.7071067812 | K75: =Input!M$12 -> 1 | L75: -1.707106781 | M75: -0.7071067812 | N75: 1.847759065 | O75: -157.5 | P75: ='Lens calcs'!G75/'Lens calcs'!N75 -> 0.2375166327 | Q75: 119.3119147 | R75: -0.1162795425 | S75: 0.2071067812 | T75: 0.1481878579 | U75: 209.3119147 | V75: -0.129214994 | W75: -0.07254740909 | X75: 225
A76: 240 | B76: -0.1918602288 | C76: -0.3323116642 | D76: =C$3*Input!M$12 -> 0.6162795425 | E76: 0.4244193137 | F76: -0.3323116642 | G76: 0.5390387704 | H76: -38.0602194 | I76: =Input!M$16*(COS(RADIANS(A76))) -> -0.5 | J76: =Input!M$16*(SIN(RADIANS(A76))) -> -0.8660254038 | K76: =Input!M$12 -> 1 | L76: -1.5 | M76: -0.8660254038 | N76: 1.732050808 | O76: -150 | P76: ='Lens calcs'!G76/'Lens calcs'!N76 -> 0.3112141792 | Q76: 111.9397806 | R76: -0.1162795425 | S76: 0.2886751346 | T76: 0.1941681391 | U76: 201.9397806 | V76: -0.1801059123 | W76: -0.07254740909 | X76: 240
A77: 250 | B77: -0.1312401259 | C77: -0.3605792824 | D77: =C$3*Input!M$12 -> 0.6162795425 | E77: 0.4850394166 | F77: -0.3605792824 | G77: 0.6043845254 | H77: -36.62718714 | I77: =Input!M$16*(COS(RADIANS(A77))) -> -0.3420201433 | J77: =Input!M$16*(SIN(RADIANS(A77))) -> -0.9396926208 | K77: =Input!M$12 -> 1 | L77: -1.342020143 | M77: -0.9396926208 | N77: 1.638304089 | O77: -145 | P77: ='Lens calcs'!G77/'Lens calcs'!N77 -> 0.3689086352 | Q77: 108.3728129 | R77: -0.1162795425 | S77: 0.3501037691 | T77: 0.2301640091 | U77: 198.3728129 | V77: -0.2184315557 | W77: -0.07254740909 | X77: 250
A78: 260 | B78: -0.06663235818 | C78: -0.3778908816 | D78: =C$3*Input!M$12 -> 0.6162795425 | E78: 0.5496471843 | F78: -0.3778908816 | G78: 0.6670183997 | H78: -34.50912057 | I78: =Input!M$16*(COS(RADIANS(A78))) -> -0.1736481777 | J78: =Input!M$16*(SIN(RADIANS(A78))) -> -0.984807753 | K78: =Input!M$12 -> 1 | L78: -1.173648178 | M78: -0.984807753 | N78: 1.532088886 | O78: -140 | P78: ='Lens calcs'!G78/'Lens calcs'!N78 -> 0.4353653406 | Q78: 105.4908794 | R78: -0.1162795425 | S78: 0.4195498156 | T78: 0.271626692 | U78: 195.4908794 | V78: -0.261759304 | W78: -0.07254740909 | X78: 260
A79: 270 | B79: =E$3*(COS(RADIANS(A79))) -> -7.051717885e-17 | C79: =E$3*(SIN(RADIANS(A79))) -> -0.3837204575 | D79: =C$3*Input!M$12 -> 0.6162795425 | E79: 0.6162795425 | F79: =C79 -> -0.3837204575 | G79: 0.72597649 | H79: =DEGREES(ATAN(F79/E79)) -> -31.90805555 | I79: =Input!M$16*(COS(RADIANS(A79))) -> -1.837722682e-16 | J79: =Input!M$16*(SIN(RADIANS(A79))) -> -1 | K79: =Input!M$12 -> 1 | L79: -1 | M79: -1 | N79: 1.414213562 | O79: =-DEGREES(ACOS(L79/N79)) -> -135 | P79: ='Lens calcs'!G79/'Lens calcs'!N79 -> 0.513342899 | Q79: 103.0919445 | R79: -0.1162795425 | S79: 0.5 | T79: 0.3202772948 | U79: 193.0919445 | V79: -0.3119525909 | W79: -0.07254740909 | X79: 270
A81: 1.0 calculation
B82: Step 1 | D82: Step 2 | E82: Step 3 | I82: Step 4 | P82: Step 5
A83: Angle | B83: X | C83: Y | D83: X | E83: X | F83: Y | G83: Mag | H83: Angle | I83: X | J83: Y | K83: Eb | P83: Magitude | Q83: Angle | R83: R | S83: jX | T83: Mag | U83: Angle | V83: Zr (plot) | W83: Zx (plot) | X83: Angle
A84: 0 | B84: =F$3*(COS(RADIANS(A84))) -> 0.2686043203 | C84: =F$3*(SIN(RADIANS(A84))) -> 0 | D84: =C$3*Input!M$12 -> 0.6162795425 | E84: =B84+D84 -> 0.8848838627 | F84: =C84 -> 0 | G84: =((E84^2)+(F84^2))^0.5 -> 0.8848838627 | H84: =DEGREES(ATAN(F84/E84)) -> 0 | I84: =Input!M$17*(COS(RADIANS(A84))) -> 0.7 | J84: =Input!M$17*(SIN(RADIANS(A84))) -> 0 | K84: =Input!M$12 -> 1 | L84: =I84-K84 -> -0.3 | M84: =J84 -> 0 | N84: =((L84^2)+(M84^2))^0.5 -> 0.3 | O84: =DEGREES(ACOS(L84/N84)) -> 180 | P84: ='Lens calcs'!G84/'Lens calcs'!N84 -> 2.949612876 | Q84: =H84-O84 -> -180 | R84: =P84*(COS(RADIANS(Q84))) -> -2.949612876 | S84: =P84*(SIN(RADIANS(Q84))) -> -3.613713657e-16 | T84: =P84*A$3 -> 1.840278758 | U84: =Q84+U$3 -> -90 | V84: =T84*COS(RADIANS(U84)) -> 1.127307338e-16 | W84: =T84*SIN(RADIANS(U84)) -> -1.840278758 | X84: 0
A85: 20 | B85: =F$3*(COS(RADIANS(A85))) -> 0.2524054977 | C85: =F$3*(SIN(RADIANS(A85))) -> 0.09186808812 | D85: =C$3*Input!M$12 -> 0.6162795425 | E85: =B85+D85 -> 0.8686850401 | F85: =C85 -> 0.09186808812 | G85: =((E85^2)+(F85^2))^0.5 -> 0.8735293038 | H85: =DEGREES(ATAN(F85/E85)) -> 6.036895857 | I85: =Input!M$17*(COS(RADIANS(A85))) -> 0.6577848346 | J85: =Input!M$17*(SIN(RADIANS(A85))) -> 0.2394141003 | K85: =Input!M$12 -> 1 | L85: =I85-K85 -> -0.3422151654 | M85: =J85 -> 0.2394141003 | N85: =((L85^2)+(M85^2))^0.5 -> 0.4176485734 | O85: =DEGREES(ACOS(L85/N85)) -> 145.0233225 | P85: ='Lens calcs'!G85/'Lens calcs'!N85 -> 2.091541452 | Q85: =H85-O85 -> -138.9864266 | R85: =P85*(COS(RADIANS(Q85))) -> -1.578181258 | S85: =P85*(SIN(RADIANS(Q85))) -> -1.372548565 | T85: =P85*A$3 -> 1.30492355 | U85: =Q85+U$3 -> -48.9864266 | V85: =T85*COS(RADIANS(U85)) -> 0.8563401619 | W85: =T85*SIN(RADIANS(U85)) -> -0.9846354648 | X85: 20
A86: 30 | B86: 0.2326181649 | C86: 0.1343021601 | D86: =C$3*Input!M$12 -> 0.6162795425 | E86: 0.8488977074 | F86: 0.1343021601 | G86: 0.8594558673 | H86: 8.990121484 | I86: =Input!M$17*(COS(RADIANS(A86))) -> 0.6062177826 | J86: =Input!M$17*(SIN(RADIANS(A86))) -> 0.35 | K86: =Input!M$12 -> 1 | L86: -0.3937822174 | M86: 0.35 | N86: 0.5268438428 | O86: 138.3687884 | P86: ='Lens calcs'!G86/'Lens calcs'!N86 -> 1.631329433 | Q86: -129.3786669 | R86: -1.034985141 | S86: -1.260968468 | T86: 1.017794886 | U86: -39.37866693 | V86: 0.7867247613 | W86: -0.6457325923 | X86: 30
A87: 45 | B87: 0.1899319363 | C87: 0.1899319363 | D87: =C$3*Input!M$12 -> 0.6162795425 | E87: 0.8062114788 | F87: 0.1899319363 | G87: 0.8282820105 | H87: 13.25635166 | I87: =Input!M$17*(COS(RADIANS(A87))) -> 0.4949747468 | J87: =Input!M$17*(SIN(RADIANS(A87))) -> 0.4949747468 | K87: =Input!M$12 -> 1 | L87: -0.5050252532 | M87: 0.4949747468 | N87: 0.7071424937 | O87: 135.5758322 | P87: ='Lens calcs'!G87/'Lens calcs'!N87 -> 1.171308496 | Q87: -122.3194805 | R87: -0.6262280312 | S87: -0.9898495063 | T87: 0.73078544 | U87: -32.31948054 | V87: 0.6175722362 | W87: -0.3907069137 | X87: 45
A88: 60 | B88: 0.1343021601 | C88: 0.2326181649 | D88: =C$3*Input!M$12 -> 0.6162795425 | E88: 0.7505817026 | F88: 0.2326181649 | G88: 0.7858015672 | H88: 17.21910691 | I88: =Input!M$17*(COS(RADIANS(A88))) -> 0.35 | J88: =Input!M$17*(SIN(RADIANS(A88))) -> 0.6062177826 | K88: =Input!M$12 -> 1 | L88: -0.65 | M88: 0.6062177826 | N88: 0.8888194417 | O88: 136.9960881 | P88: ='Lens calcs'!G88/'Lens calcs'!N88 -> 0.8840958357 | Q88: -119.7769811 | R88: -0.4390643526 | S88: -0.7673642818 | T88: 0.5515919731 | U88: -29.77698115 | V88: 0.4787625518 | W88: -0.2739345247 | X88: 60
A89: 75 | B89: 0.06951991368 | C89: 0.25945185 | D89: =C$3*Input!M$12 -> 0.6162795425 | E89: 0.6857994562 | F89: 0.25945185 | G89: 0.733236767 | H89: 20.72264748 | I89: =Input!M$17*(COS(RADIANS(A89))) -> 0.1811733316 | J89: =Input!M$17*(SIN(RADIANS(A89))) -> 0.6761480784 | K89: =Input!M$12 -> 1 | L89: -0.8188266684 | M89: 0.6761480784 | N89: 1.06191023 | O89: 140.4517278 | P89: ='Lens calcs'!G89/'Lens calcs'!N89 -> 0.6904884671 | Q89: -119.7290803 | R89: -0.3424128688 | S89: -0.5996063296 | T89: 0.4307993326 | U89: -29.72908028 | V89: 0.3740974961 | W89: -0.2136331632 | X89: 75
A90: 90 | B90: 1.64540084e-17 | C90: 0.2686043203 | D90: =C$3*Input!M$12 -> 0.6162795425 | E90: 0.6162795425 | F90: 0.2686043203 | G90: 0.6722713406 | H90: 23.54989234 | I90: =Input!M$17*(COS(RADIANS(A90))) -> 4.288019592e-17 | J90: =Input!M$17*(SIN(RADIANS(A90))) -> 0.7 | K90: =Input!M$12 -> 1 | L90: -1 | M90: 0.7 | N90: 1.220655562 | O90: 145.0079798 | P90: ='Lens calcs'!G90/'Lens calcs'!N90 -> 0.5507461414 | Q90: -121.4580875 | R90: -0.2874204821 | S90: -0.4697986577 | T90: 0.3436133715 | U90: -31.45808746 | V90: 0.293109817 | W90: -0.1793231281 | X90: 90
A91: 105 | B91: -0.06951991368 | C91: 0.25945185 | D91: =C$3*Input!M$12 -> 0.6162795425 | E91: 0.5467596288 | F91: 0.25945185 | G91: 0.6051953025 | H91: 25.38557167 | I91: =Input!M$17*(COS(RADIANS(A91))) -> -0.1811733316 | J91: =Input!M$17*(SIN(RADIANS(A91))) -> 0.6761480784 | K91: =Input!M$12 -> 1 | L91: -1.181173332 | M91: 0.6761480784 | N91: 1.361009428 | O91: 150.2115536 | P91: ='Lens calcs'!G91/'Lens calcs'!N91 -> 0.4446665027 | Q91: -124.8259819 | R91: -0.2539427591 | S91: -0.365022429 | T91: 0.2774297352 | U91: -34.82598194 | V91: 0.227739385 | W91: -0.1584362033 | X91: 105
A92: 120 | B92: -0.1343021601 | C92: 0.2326181649 | D92: =C$3*Input!M$12 -> 0.6162795425 | E92: 0.4819773823 | F92: 0.2326181649 | G92: 0.535176053 | H92: 25.76348777 | I92: =Input!M$17*(COS(RADIANS(A92))) -> -0.35 | J92: =Input!M$17*(SIN(RADIANS(A92))) -> 0.6062177826 | K92: =Input!M$12 -> 1 | L92: -1.35 | M92: 0.6062177826 | N92: 1.479864859 | O92: 155.8175256 | P92: ='Lens calcs'!G92/'Lens calcs'!N92 -> 0.3616384631 | Q92: -130.0540379 | R92: -0.2327178986 | S92: -0.2768117729 | T92: 0.225628111 | U92: -40.05403788 | V92: 0.1727042995 | W92: -0.1451939029 | X92: 120
A93: 135 | B93: -0.1899319363 | C93: 0.1899319363 | D93: =C$3*Input!M$12 -> 0.6162795425 | E93: 0.4263476062 | F93: 0.1899319363 | G93: 0.4667402079 | H93: 24.01230809 | I93: =Input!M$17*(COS(RADIANS(A93))) -> -0.4949747468 | J93: =Input!M$17*(SIN(RADIANS(A93))) -> 0.4949747468 | K93: =Input!M$12 -> 1 | L93: -1.494974747 | M93: 0.4949747468 | N93: 1.574785539 | O93: 161.6806862 | P93: ='Lens calcs'!G93/'Lens calcs'!N93 -> 0.2963833464 | Q93: -137.6683781 | R93: -0.2191042172 | S93: -0.1995906562 | T93: 0.1849151056 | U93: -47.66837813 | V93: 0.1245256447 | W93: -0.1367002565 | X93: 135
A94: 150 | B94: -0.2326181649 | C94: 0.1343021601 | D94: =C$3*Input!M$12 -> 0.6162795425 | E94: 0.3836613776 | F94: 0.1343021601 | G94: 0.4064887733 | H94: 19.29279721 | I94: =Input!M$17*(COS(RADIANS(A94))) -> -0.6062177826 | J94: =Input!M$17*(SIN(RADIANS(A94))) -> 0.35 | K94: =Input!M$12 -> 1 | L94: -1.606217783 | M94: 0.35 | N94: 1.643908624 | O94: 167.7072231 | P94: ='Lens calcs'!G94/'Lens calcs'!N94 -> 0.2472696884 | Q94: -148.4144259 | R94: -0.210638869 | S94: -0.1295128012 | T94: 0.1542728399 | U94: -58.41442593 | V94: 0.08080370775 | W94: -0.1314186819 | X94: 150
A95: 165 | B95: -0.25945185 | C95: 0.06951991368 | D95: =C$3*Input!M$12 -> 0.6162795425 | E95: 0.3568276925 | F95: 0.06951991368 | G95: 0.3635368214 | H95: 11.0246975 | I95: =Input!M$17*(COS(RADIANS(A95))) -> -0.6761480784 | J95: =Input!M$17*(SIN(RADIANS(A95))) -> 0.1811733316 | K95: =Input!M$12 -> 1 | L95: -1.676148078 | M95: 0.1811733316 | N95: 1.685911076 | O95: 173.8309016 | P95: ='Lens calcs'!G95/'Lens calcs'!N95 -> 0.2156322635 | Q95: -162.8062041 | R95: -0.2059957388 | S95: -0.06374189091 | T95: 0.1345340866 | U95: -72.8062041 | V95: 0.03976889604 | W95: -0.1285218089 | X95: 165
A96: 180 | B96: -0.2686043203 | C96: 3.29080168e-17 | D96: =C$3*Input!M$12 -> 0.6162795425 | E96: 0.3476752222 | F96: 3.29080168e-17 | G96: 0.3476752222 | H96: 5.423137325e-15 | I96: =Input!M$17*(COS(RADIANS(A96))) -> -0.7 | J96: =Input!M$17*(SIN(RADIANS(A96))) -> 8.576039184e-17 | K96: =Input!M$12 -> 1 | L96: -1.7 | M96: 8.576039184e-17 | N96: 1.7 | O96: 180 | P96: ='Lens calcs'!G96/'Lens calcs'!N96 -> 0.2045148366 | Q96: -180 | R96: -0.2045148366 | S96: -2.505610361e-17 | T96: 0.1275978663 | U96: -90 | V96: 7.816316438e-18 | W96: -0.1275978663 | X96: 180
A97: 195 | B97: -0.25945185 | C97: -0.06951991368 | D97: =C$3*Input!M$12 -> 0.6162795425 | E97: 0.3568276925 | F97: -0.06951991368 | G97: 0.3635368214 | H97: -11.0246975 | I97: =Input!M$17*(COS(RADIANS(A97))) -> -0.6761480784 | J97: =Input!M$17*(SIN(RADIANS(A97))) -> -0.1811733316 | K97: =Input!M$12 -> 1 | L97: -1.676148078 | M97: -0.1811733316 | N97: 1.685911076 | O97: =-DEGREES(ACOS(L97/N97)) -> -173.8309016 | P97: ='Lens calcs'!G97/'Lens calcs'!N97 -> 0.2156322635 | Q97: 162.8062041 | R97: -0.2059957388 | S97: 0.06374189091 | T97: 0.1345340866 | U97: 252.8062041 | V97: -0.03976889604 | W97: -0.1285218089 | X97: 195
A98: 210 | B98: -0.2326181649 | C98: -0.1343021601 | D98: =C$3*Input!M$12 -> 0.6162795425 | E98: 0.3836613776 | F98: -0.1343021601 | G98: 0.4064887733 | H98: -19.29279721 | I98: =Input!M$17*(COS(RADIANS(A98))) -> -0.6062177826 | J98: =Input!M$17*(SIN(RADIANS(A98))) -> -0.35 | K98: =Input!M$12 -> 1 | L98: -1.606217783 | M98: -0.35 | N98: 1.643908624 | O98: =-DEGREES(ACOS(L98/N98)) -> -167.7072231 | P98: ='Lens calcs'!G98/'Lens calcs'!N98 -> 0.2472696884 | Q98: 148.4144259 | R98: -0.210638869 | S98: 0.1295128012 | T98: 0.1542728399 | U98: 238.4144259 | V98: -0.08080370775 | W98: -0.1314186819 | X98: 210
A99: 225 | B99: -0.1899319363 | C99: -0.1899319363 | D99: =C$3*Input!M$12 -> 0.6162795425 | E99: 0.4263476062 | F99: -0.1899319363 | G99: 0.4667402079 | H99: -24.01230809 | I99: =Input!M$17*(COS(RADIANS(A99))) -> -0.4949747468 | J99: =Input!M$17*(SIN(RADIANS(A99))) -> -0.4949747468 | K99: =Input!M$12 -> 1 | L99: -1.494974747 | M99: -0.4949747468 | N99: 1.574785539 | O99: -161.6806862 | P99: ='Lens calcs'!G99/'Lens calcs'!N99 -> 0.2963833464 | Q99: 137.6683781 | R99: -0.2191042172 | S99: 0.1995906562 | T99: 0.1849151056 | U99: 227.6683781 | V99: -0.1245256447 | W99: -0.1367002565 | X99: 225
A100: 240 | B100: -0.1343021601 | C100: -0.2326181649 | D100: =C$3*Input!M$12 -> 0.6162795425 | E100: 0.4819773823 | F100: -0.2326181649 | G100: 0.535176053 | H100: -25.76348777 | I100: =Input!M$17*(COS(RADIANS(A100))) -> -0.35 | J100: =Input!M$17*(SIN(RADIANS(A100))) -> -0.6062177826 | K100: =Input!M$12 -> 1 | L100: -1.35 | M100: -0.6062177826 | N100: 1.479864859 | O100: -155.8175256 | P100: ='Lens calcs'!G100/'Lens calcs'!N100 -> 0.3616384631 | Q100: 130.0540379 | R100: -0.2327178986 | S100: 0.2768117729 | T100: 0.225628111 | U100: 220.0540379 | V100: -0.1727042995 | W100: -0.1451939029 | X100: 240
A101: 250 | B101: -0.09186808812 | C101: -0.2524054977 | D101: =C$3*Input!M$12 -> 0.6162795425 | E101: 0.5244114544 | F101: -0.2524054977 | G101: 0.5819930487 | H101: -25.70206767 | I101: =Input!M$17*(COS(RADIANS(A101))) -> -0.2394141003 | J101: =Input!M$17*(SIN(RADIANS(A101))) -> -0.6577848346 | K101: =Input!M$12 -> 1 | L101: -1.2394141 | M101: -0.6577848346 | N101: 1.403149386 | O101: -152.044106 | P101: ='Lens calcs'!G101/'Lens calcs'!N101 -> 0.4147762557 | Q101: 126.3420384 | R101: -0.2457982074 | S101: 0.3340996611 | T101: 0.2587810552 | U101: 216.3420384 | V101: -0.2084465098 | W101: -0.1533547753 | X101: 250
A102: 260 | B102: -0.04664265073 | C102: -0.2645236171 | D102: =C$3*Input!M$12 -> 0.6162795425 | E102: 0.5696368917 | F102: -0.2645236171 | G102: 0.6280596568 | H102: -24.90885186 | I102: =Input!M$17*(COS(RADIANS(A102))) -> -0.1215537244 | J102: =Input!M$17*(SIN(RADIANS(A102))) -> -0.6893654271 | K102: =Input!M$12 -> 1 | L102: -1.121553724 | M102: -0.6893654271 | N102: 1.316475389 | O102: -148.4229467 | P102: ='Lens calcs'!G102/'Lens calcs'!N102 -> 0.4770766413 | Q102: 123.5140949 | R102: -0.2634141014 | S102: 0.397762659 | T102: 0.2976505886 | U102: 213.5140949 | V102: -0.2481661841 | W102: -0.1643454228 | X102: 260
A103: 270 | B103: -4.936202519e-17 | C103: -0.2686043203 | D103: =C$3*Input!M$12 -> 0.6162795425 | E103: 0.6162795425 | F103: -0.2686043203 | G103: 0.6722713406 | H103: -23.54989234 | I103: =Input!M$17*(COS(RADIANS(A103))) -> -1.286405878e-16 | J103: =Input!M$17*(SIN(RADIANS(A103))) -> -0.7 | K103: =Input!M$12 -> 1 | L103: -1 | M103: -0.7 | N103: 1.220655562 | O103: =-DEGREES(ACOS(L103/N103)) -> -145.0079798 | P103: ='Lens calcs'!G103/'Lens calcs'!N103 -> 0.5507461414 | Q103: 121.4580875 | R103: -0.2874204821 | S103: 0.4697986577 | T103: 0.3436133715 | U103: 211.4580875 | V103: -0.293109817 | W103: -0.1793231281 | X103: 270
A105: Left Lens | B105: 120 | C105: 240
A107: 0.7 | B107: =(1-C3)*A107 -> 0.2686043203 | C107: =B107*(COS(RADIANS(B$105))) -> -0.1343021601 | D107: =B107*(SIN(RADIANS(B$105))) -> 0.2326181649 | E107: =C$3*Input!M$12 -> 0.6162795425 | F107: =C107+E107 -> 0.4819773823 | G107: =D107 -> 0.2326181649 | H107: =((F107^2)+(G107^2))^0.5 -> 0.535176053 | I107: =DEGREES(ATAN(G107/F107)) -> 25.76348777 | J107: =A107*(COS(RADIANS(B$105))) -> -0.35 | K107: =A107*(SIN(RADIANS(B$105))) -> 0.6062177826 | L107: =Input!M$12 -> 1 | M107: =J107-L107 -> -1.35 | N107: =K107 -> 0.6062177826 | O107: =((M107^2)+(N107^2))^0.5 -> 1.479864859 | P107: =DEGREES(ACOS(M107/O107)) -> 155.8175256 | Q107: ='Lens calcs'!H107/'Lens calcs'!O107 -> 0.3616384631 | R107: =I107-P107 -> -130.0540379 | S107: =Q107*(COS(RADIANS(R107))) -> -0.2327178986 | T107: =Q107*(SIN(RADIANS(R107))) -> -0.2768117729 | U107: =Q107*A$3 -> 0.225628111 | V107: =R107+U$3 -> -40.05403788 | W107: =U107*COS(RADIANS(V107)) -> 0.1727042995 | X107: =U107*SIN(RADIANS(V107)) -> -0.1451939029
A108: 0.75 | B108: =(1-C$3)*A108 -> 0.2877903431 | C108: =B108*(COS(RADIANS(B$105))) -> -0.1438951716 | D108: =B108*(SIN(RADIANS(B$105))) -> 0.2492337481 | E108: =C$3*Input!M$12 -> 0.6162795425 | F108: =C108+E108 -> 0.4723843709 | G108: =D108 -> 0.2492337481 | H108: =((F108^2)+(G108^2))^0.5 -> 0.53410154 | I108: =DEGREES(ATAN(G108/F108)) -> 27.8164852 | J108: =A108*(COS(RADIANS(B$105))) -> -0.375 | K108: =A108*(SIN(RADIANS(B$105))) -> 0.6495190528 | L108: =Input!M$12 -> 1 | M108: =J108-L108 -> -1.375 | N108: =K108 -> 0.6495190528 | O108: =((M108^2)+(N108^2))^0.5 -> 1.520690633 | P108: =DEGREES(ACOS(M108/O108)) -> 154.715004 | Q108: ='Lens calcs'!H108/'Lens calcs'!O108 -> 0.3512230092 | R108: =I108-P108 -> -126.8985187 | S108: =Q108*(COS(RADIANS(R108))) -> -0.2108741371 | T108: =Q108*(SIN(RADIANS(R108))) -> -0.2808731039 | U108: =Q108*A$3 -> 0.2191298554 | V108: =R108+U$3 -> -36.89851875 | W108: =U108*COS(RADIANS(V108)) -> 0.175238185 | X108: =U108*SIN(RADIANS(V108)) -> -0.1315654668
A109: 0.8 | B109: =(1-C$3)*A109 -> 0.306976366 | C109: =B109*(COS(RADIANS(B$105))) -> -0.153488183 | D109: 0.2658493313 | E109: =C$3*Input!M$12 -> 0.6162795425 | F109: =C109+E109 -> 0.4627913595 | G109: =D109 -> 0.2658493313 | H109: =((F109^2)+(G109^2))^0.5 -> 0.5337150076 | I109: =DEGREES(ATAN(G109/F109)) -> 29.87510514 | J109: -0.4 | K109: 0.692820323 | L109: =Input!M$12 -> 1 | M109: =J109-L109 -> -1.4 | N109: =K109 -> 0.692820323 | O109: =((M109^2)+(N109^2))^0.5 -> 1.562049935 | P109: =DEGREES(ACOS(M109/O109)) -> 153.6704965 | Q109: ='Lens calcs'!H109/'Lens calcs'!O109 -> 0.3416760218 | R109: =I109-P109 -> -123.7953914 | S109: =Q109*(COS(RADIANS(R109))) -> -0.1900500343 | T109: =Q109*(SIN(RADIANS(R109))) -> -0.2839427553 | U109: =Q109*A$3 -> 0.2131734405 | V109: =R109+U$3 -> -33.79539137 | W109: =U109*COS(RADIANS(V109)) -> 0.1771533564 | X109: =U109*SIN(RADIANS(V109)) -> -0.1185732012
A110: 0.85 | B110: 0.3261623889 | C110: -0.1630811944 | D110: 0.2824649145 | E110: =C$3*Input!M$12 -> 0.6162795425 | F110: 0.453198348 | G110: 0.2824649145 | H110: 0.5340179497 | I110: 31.93404745 | J110: -0.425 | K110: 0.7361215932 | L110: =Input!M$12 -> 1 | M110: -1.425 | N110: 0.7361215932 | O110: 1.603901493 | P110: 152.6801839 | Q110: ='Lens calcs'!H110/'Lens calcs'!O110 -> 0.3329493438 | R110: -120.7461365 | S110: -0.1702154025 | T110: -0.2861502792 | U110: 0.2077288209 | V110: -30.7461365 | W110: 0.178530642 | X110: -0.1061982717
A111: 0.9 | B111: 0.3453484118 | C111: -0.1726742059 | D111: 0.2990804977 | E111: =C$3*Input!M$12 -> 0.6162795425 | F111: 0.4436053366 | G111: 0.2990804977 | H111: 0.535009195 | I111: 33.98800704 | J111: -0.45 | K111: 0.7794228634 | L111: =Input!M$12 -> 1 | M111: -1.45 | N111: 0.7794228634 | O111: 1.646207763 | P111: 151.740503 | Q111: ='Lens calcs'!H111/'Lens calcs'!O111 -> 0.3249949411 | R111: -117.752496 | S111: -0.151334893 | T111: -0.2876099127 | U111: 0.2027660278 | V111: -27.752496 | W111: 0.1794413149 | X111: -0.09441862395
A112: 0.95 | B112: 0.3645344346 | C112: -0.1822672173 | D112: 0.315696081 | E112: =C$3*Input!M$12 -> 0.6162795425 | F112: 0.4340123252 | G112: 0.315696081 | H112: 0.5366849298 | I112: 36.03175543 | J112: -0.475 | K112: 0.8227241336 | L112: =Input!M$12 -> 1 | M112: -1.475 | N112: 0.8227241336 | O112: 1.688934575 | P112: 150.8481363 | Q112: ='Lens calcs'!H112/'Lens calcs'!O112 -> 0.3177653757 | R112: -114.8163809 | S112: -0.1333698142 | T112: -0.2884221327 | U112: 0.1982554645 | V112: -24.81638092 | W112: 0.1799480632 | X112: -0.08321011816
A113: 1 | B113: 0.3837204575 | C113: -0.1918602288 | D113: 0.3323116642 | E113: =C$3*Input!M$12 -> 0.6162795425 | F113: 0.4244193137 | G113: 0.3323116642 | H113: 0.5390387704 | I113: 38.0602194 | J113: -0.5 | K113: 0.8660254038 | L113: =Input!M$12 -> 1 | M113: -1.5 | N113: 0.8660254038 | O113: 1.732050808 | P113: 150 | Q113: ='Lens calcs'!H113/'Lens calcs'!O113 -> 0.3112141792 | R113: -111.9397806 | S113: -0.1162795425 | T113: -0.2886751346 | U113: 0.1941681391 | V113: -21.9397806 | W113: 0.1801059123 | X113: -0.07254740909
A114: 1.05 | B114: 0.4029064804 | C114: -0.2014532402 | D114: 0.3489272474 | E114: =C$3*Input!M$12 -> 0.6162795425 | F114: 0.4148263023 | G114: 0.3489272474 | H114: 0.542061883 | I114: 40.06855384 | J114: -0.525 | K114: 0.909326674 | L114: =Input!M$12 -> 1 | M114: -1.525 | N114: 0.909326674 | O114: 1.77552809 | P114: 149.1932305 | Q114: ='Lens calcs'!H114/'Lens calcs'!O114 -> 0.3052961459 | R114: -109.1246767 | S114: -0.1000226035 | T114: -0.288446209 | U114: 0.1904758474 | V114: -19.12467671 | W114: 0.1799630845 | X114: -0.06240462065
A115: 1.1 | B115: 0.4220925033 | C115: -0.2110462516 | D115: 0.3655428306 | E115: =C$3*Input!M$12 -> 0.6162795425 | F115: 0.4052332908 | G115: 0.3655428306 | H115: 0.5457431456 | I115: 42.05220627 | J115: -0.55 | K115: 0.9526279442 | L115: =Input!M$12 -> 1 | M115: -1.55 | N115: 0.9526279442 | O115: 1.81934054 | P115: 148.4251713 | Q115: ='Lens calcs'!H115/'Lens calcs'!O115 -> 0.2999675617 | R115: -106.372965 | S115: -0.0845574881 | T115: -0.2878030043 | U115: 0.1871513161 | V115: -16.37296502 | W115: 0.1795617857 | X115: -0.05275585498
A116: 1.15 | B116: 0.4412785262 | C116: -0.2206392631 | D116: 0.3821584138 | E116: =C$3*Input!M$12 -> 0.6162795425 | F116: 0.3956402794 | G116: 0.3821584138 | H116: 0.5500693446 | I116: 44.00697101 | J116: -0.575 | K116: 0.9959292144 | L116: =Input!M$12 -> 1 | M116: -1.575 | N116: 0.9959292144 | O116: 1.863464515 | P116: 147.6933586 | Q116: ='Lens calcs'!H116/'Lens calcs'!O116 -> 0.2951863801 | R116: -103.6863876 | S116: -0.06984325738 | T116: -0.2868046694 | U116: 0.1841683121 | V116: -13.68638756 | W116: 0.1789389194 | X116: -0.04357557019
A117: 1.2 | B117: 0.460464549 | C117: -0.2302322745 | D117: 0.398773997 | E117: =C$3*Input!M$12 -> 0.6162795425 | F117: 0.386047268 | G117: 0.398773997 | H117: 0.5550253992 | I117: 45.92903185 | J117: -0.6 | K117: 1.039230485 | L117: =Input!M$12 -> 1 | M117: -1.6 | N117: 1.039230485 | O117: 1.907878403 | P117: 146.9955084 | Q117: ='Lens calcs'!H117/'Lens calcs'!O117 -> 0.290912355 | R117: -101.0664765 | S117: -0.05583998204 | T117: -0.2855028804 | U117: 0.1815017257 | V117: -11.06647655 | W117: 0.1781267265 | X117: -0.03483885415
A118: 1.25 | B118: 0.4796505719 | C118: -0.239825286 | D118: 0.4153895802 | E118: =C$3*Input!M$12 -> 0.6162795425 | F118: 0.3764542565 | G118: 0.4153895802 | H118: 0.5605946045 | I118: 47.81499252 | J118: -0.625 | K118: 1.082531755 | L118: =Input!M$12 -> 1 | M118: -1.625 | N118: 1.082531755 | O118: 1.952562419 | P118: 146.3295035 | Q118: ='Lens calcs'!H118/'Lens calcs'!O118 -> 0.2871071363 | R118: -98.51451098 | S118: -0.04250905067 | T118: -0.2839427553 | U118: 0.1791276301 | V118: -8.514510976 | W118: 0.1771533564 | X118: -0.02652161699
A119: 1.3 | B119: 0.4988365948 | C119: -0.2494182974 | D119: 0.4320051634 | E119: =C$3*Input!M$12 -> 0.6162795425 | F119: 0.3668612451 | G119: 0.4320051634 | H119: 0.5667588856 | I119: 49.66189487 | J119: -0.65 | K119: 1.125833025 | L119: =Input!M$12 -> 1 | M119: -1.65 | N119: 1.125833025 | O119: 1.997498436 | P119: 145.6933809 | Q119: ='Lens calcs'!H119/'Lens calcs'!O119 -> 0.2837343326 | R119: -96.03148603 | S119: -0.02981337706 | T119: -0.2821636654 | U119: 0.1770233204 | V119: -6.031486035 | W119: 0.176043373 | X119: -0.01860072044
A120: 1.35 | B120: 0.5180226177 | C120: -0.2590113088 | D120: 0.4486207466 | E120: =C$3*Input!M$12 -> 0.6162795425 | F120: 0.3572682336 | G120: 0.4486207466 | H120: 0.5734990541 | I120: 51.46722568 | J120: -0.675 | K120: 1.169134295 | L120: =Input!M$12 -> 1 | M120: -1.675 | N120: 1.169134295 | O120: 2.042669822 | P120: 145.0853204 | Q120: ='Lens calcs'!H120/'Lens calcs'!O120 -> 0.2807595472 | R120: -93.61809471 | S120: -0.0177175293 | T120: -0.2801999509 | U120: 0.1751673363 | V120: -3.61809471 | W120: 0.1748182013 | X120: -0.01105405834
A121: 1.4 | B121: 0.5372086405 | C121: -0.2686043203 | D121: 0.4652363298 | E121: =C$3*Input!M$12 -> 0.6162795425 | F121: 0.3476752222 | G121: 0.4652363298 | H121: 0.5807950609 | I121: 53.22891283 | J121: -0.7 | K121: 1.212435565 | L121: =Input!M$12 -> 1 | M121: -1.7 | N121: 1.212435565 | O121: 2.088061302 | P121: 144.5036335 | Q121: ='Lens calcs'!H121/'Lens calcs'!O121 -> 0.2781503878 | R121: -91.27472063 | S121: -0.006187799358 | T121: -0.2780815517 | U121: 0.1735394683 | V121: -1.274720628 | W121: 0.1734965211 | X121: -0.003860600083
A122: 1.42 | B122: 0.5448830497 | C122: -0.2724415248 | D122: 0.4718825631 | E122: =C$3*Input!M$12 -> 0.6162795425 | F122: 0.3438380176 | G122: 0.4718825631 | H122: 0.5838644841 | I122: 53.92098526 | J122: -0.71 | K122: =A122*(SIN(RADIANS(B$105))) -> 1.229756073 | L122: =Input!M$12 -> 1 | M122: -1.71 | N122: 1.229756073 | O122: 2.106276335 | P122: 144.2779884 | Q122: ='Lens calcs'!H122/'Lens calcs'!O122 -> 0.2772022238 | R122: -90.35700315 | S122: -0.001727202742 | T122: -0.2771968428 | U122: 0.1729479038 | V122: -0.3570031527 | W122: 0.1729445466 | X122: -0.001077610741
A124: Right Lens | B124: 240
A125: 0.7 | B125: =(1-C$3)*A125 -> 0.2686043203 | C125: =B125*(COS(RADIANS(B$124))) -> -0.1343021601 | D125: =B125*(SIN(RADIANS(B$124))) -> -0.2326181649 | E125: =C$3*Input!M$12 -> 0.6162795425 | F125: =C125+E125 -> 0.4819773823 | G125: =D125 -> -0.2326181649 | H125: =((F125^2)+(G125^2))^0.5 -> 0.535176053 | I125: =DEGREES(ATAN(G125/F125)) -> -25.76348777 | J125: =A125*(COS(RADIANS(B$105))) -> -0.35 | K125: =A125*(SIN(RADIANS(B$124))) -> -0.6062177826 | L125: =Input!M$12 -> 1 | M125: =J125-L125 -> -1.35 | N125: =K125 -> -0.6062177826 | O125: =((M125^2)+(N125^2))^0.5 -> 1.479864859 | P125: =-DEGREES(ACOS(M125/O125)) -> -155.8175256 | Q125: ='Lens calcs'!H125/'Lens calcs'!O125 -> 0.3616384631 | R125: =I125-P125 -> 130.0540379 | S125: =Q125*(COS(RADIANS(R125))) -> -0.2327178986 | T125: =Q125*(SIN(RADIANS(R125))) -> 0.2768117729 | U125: =Q125*A$3 -> 0.225628111 | V125: =R125+U$3 -> 220.0540379 | W125: =U125*COS(RADIANS(V125)) -> -0.1727042995 | X125: =U125*SIN(RADIANS(V125)) -> -0.1451939029
A126: 0.75 | B126: =(1-C$3)*A126 -> 0.2877903431 | C126: =B126*(COS(RADIANS(B$124))) -> -0.1438951716 | D126: =B126*(SIN(RADIANS(B$124))) -> -0.2492337481 | E126: =C$3*Input!M$12 -> 0.6162795425 | F126: =C126+E126 -> 0.4723843709 | G126: =D126 -> -0.2492337481 | H126: =((F126^2)+(G126^2))^0.5 -> 0.53410154 | I126: =DEGREES(ATAN(G126/F126)) -> -27.8164852 | J126: =A126*(COS(RADIANS(B$105))) -> -0.375 | K126: =A126*(SIN(RADIANS(B$124))) -> -0.6495190528 | L126: =Input!M$12 -> 1 | M126: =J126-L126 -> -1.375 | N126: =K126 -> -0.6495190528 | O126: =((M126^2)+(N126^2))^0.5 -> 1.520690633 | P126: =-DEGREES(ACOS(M126/O126)) -> -154.715004 | Q126: ='Lens calcs'!H126/'Lens calcs'!O126 -> 0.3512230092 | R126: =I126-P126 -> 126.8985187 | S126: =Q126*(COS(RADIANS(R126))) -> -0.2108741371 | T126: =Q126*(SIN(RADIANS(R126))) -> 0.2808731039 | U126: =Q126*A$3 -> 0.2191298554 | V126: =R126+U$3 -> 216.8985187 | W126: =U126*COS(RADIANS(V126)) -> -0.175238185 | X126: =U126*SIN(RADIANS(V126)) -> -0.1315654668
A127: 0.8 | B127: 0.306976366 | C127: -0.153488183 | D127: -0.2658493313 | E127: =C$3*Input!M$12 -> 0.6162795425 | F127: 0.4627913595 | G127: -0.2658493313 | H127: 0.5337150076 | I127: -29.87510514 | J127: -0.4 | K127: -0.692820323 | L127: =Input!M$12 -> 1 | M127: -1.4 | N127: -0.692820323 | O127: 1.562049935 | P127: -153.6704965 | Q127: ='Lens calcs'!H127/'Lens calcs'!O127 -> 0.3416760218 | R127: 123.7953914 | S127: -0.1900500343 | T127: 0.2839427553 | U127: 0.2131734405 | V127: 213.7953914 | W127: -0.1771533564 | X127: -0.1185732012
A128: 0.85 | B128: 0.3261623889 | C128: -0.1630811944 | D128: -0.2824649145 | E128: =C$3*Input!M$12 -> 0.6162795425 | F128: 0.453198348 | G128: -0.2824649145 | H128: 0.5340179497 | I128: -31.93404745 | J128: -0.425 | K128: -0.7361215932 | L128: =Input!M$12 -> 1 | M128: -1.425 | N128: -0.7361215932 | O128: 1.603901493 | P128: -152.6801839 | Q128: ='Lens calcs'!H128/'Lens calcs'!O128 -> 0.3329493438 | R128: 120.7461365 | S128: -0.1702154025 | T128: 0.2861502792 | U128: 0.2077288209 | V128: 210.7461365 | W128: -0.178530642 | X128: -0.1061982717
A129: 0.9 | B129: 0.3453484118 | C129: -0.1726742059 | D129: -0.2990804977 | E129: =C$3*Input!M$12 -> 0.6162795425 | F129: 0.4436053366 | G129: -0.2990804977 | H129: 0.535009195 | I129: -33.98800704 | J129: -0.45 | K129: -0.7794228634 | L129: =Input!M$12 -> 1 | M129: -1.45 | N129: -0.7794228634 | O129: 1.646207763 | P129: -151.740503 | Q129: ='Lens calcs'!H129/'Lens calcs'!O129 -> 0.3249949411 | R129: 117.752496 | S129: -0.151334893 | T129: 0.2876099127 | U129: 0.2027660278 | V129: 207.752496 | W129: -0.1794413149 | X129: -0.09441862395
A130: 0.95 | B130: 0.3645344346 | C130: -0.1822672173 | D130: -0.315696081 | E130: =C$3*Input!M$12 -> 0.6162795425 | F130: 0.4340123252 | G130: -0.315696081 | H130: 0.5366849298 | I130: -36.03175543 | J130: -0.475 | K130: -0.8227241336 | L130: =Input!M$12 -> 1 | M130: -1.475 | N130: -0.8227241336 | O130: 1.688934575 | P130: -150.8481363 | Q130: ='Lens calcs'!H130/'Lens calcs'!O130 -> 0.3177653757 | R130: 114.8163809 | S130: -0.1333698142 | T130: 0.2884221327 | U130: 0.1982554645 | V130: 204.8163809 | W130: -0.1799480632 | X130: -0.08321011816
A131: 1 | B131: 0.3837204575 | C131: -0.1918602288 | D131: -0.3323116642 | E131: =C$3*Input!M$12 -> 0.6162795425 | F131: 0.4244193137 | G131: -0.3323116642 | H131: 0.5390387704 | I131: -38.0602194 | J131: -0.5 | K131: -0.8660254038 | L131: =Input!M$12 -> 1 | M131: -1.5 | N131: -0.8660254038 | O131: 1.732050808 | P131: -150 | Q131: ='Lens calcs'!H131/'Lens calcs'!O131 -> 0.3112141792 | R131: 111.9397806 | S131: -0.1162795425 | T131: 0.2886751346 | U131: 0.1941681391 | V131: 201.9397806 | W131: -0.1801059123 | X131: -0.07254740909
A132: 1.05 | B132: 0.4029064804 | C132: -0.2014532402 | D132: -0.3489272474 | E132: =C$3*Input!M$12 -> 0.6162795425 | F132: 0.4148263023 | G132: -0.3489272474 | H132: 0.542061883 | I132: -40.06855384 | J132: -0.525 | K132: -0.909326674 | L132: =Input!M$12 -> 1 | M132: -1.525 | N132: -0.909326674 | O132: 1.77552809 | P132: -149.1932305 | Q132: ='Lens calcs'!H132/'Lens calcs'!O132 -> 0.3052961459 | R132: 109.1246767 | S132: -0.1000226035 | T132: 0.288446209 | U132: 0.1904758474 | V132: 199.1246767 | W132: -0.1799630845 | X132: -0.06240462065
A133: 1.1 | B133: 0.4220925033 | C133: -0.2110462516 | D133: -0.3655428306 | E133: =C$3*Input!M$12 -> 0.6162795425 | F133: 0.4052332908 | G133: -0.3655428306 | H133: 0.5457431456 | I133: -42.05220627 | J133: -0.55 | K133: -0.9526279442 | L133: =Input!M$12 -> 1 | M133: -1.55 | N133: -0.9526279442 | O133: 1.81934054 | P133: -148.4251713 | Q133: ='Lens calcs'!H133/'Lens calcs'!O133 -> 0.2999675617 | R133: 106.372965 | S133: -0.0845574881 | T133: 0.2878030043 | U133: 0.1871513161 | V133: 196.372965 | W133: -0.1795617857 | X133: -0.05275585498
A134: 1.15 | B134: 0.4412785262 | C134: -0.2206392631 | D134: -0.3821584138 | E134: =C$3*Input!M$12 -> 0.6162795425 | F134: 0.3956402794 | G134: -0.3821584138 | H134: 0.5500693446 | I134: -44.00697101 | J134: -0.575 | K134: -0.9959292144 | L134: =Input!M$12 -> 1 | M134: -1.575 | N134: -0.9959292144 | O134: 1.863464515 | P134: -147.6933586 | Q134: ='Lens calcs'!H134/'Lens calcs'!O134 -> 0.2951863801 | R134: 103.6863876 | S134: -0.06984325738 | T134: 0.2868046694 | U134: 0.1841683121 | V134: 193.6863876 | W134: -0.1789389194 | X134: -0.04357557019
A135: 1.2 | B135: 0.460464549 | C135: -0.2302322745 | D135: -0.398773997 | E135: =C$3*Input!M$12 -> 0.6162795425 | F135: 0.386047268 | G135: -0.398773997 | H135: 0.5550253992 | I135: -45.92903185 | J135: -0.6 | K135: -1.039230485 | L135: =Input!M$12 -> 1 | M135: -1.6 | N135: -1.039230485 | O135: 1.907878403 | P135: -146.9955084 | Q135: ='Lens calcs'!H135/'Lens calcs'!O135 -> 0.290912355 | R135: 101.0664765 | S135: -0.05583998204 | T135: 0.2855028804 | U135: 0.1815017257 | V135: 191.0664765 | W135: -0.1781267265 | X135: -0.03483885415
A136: 1.25 | B136: 0.4796505719 | C136: -0.239825286 | D136: -0.4153895802 | E136: =C$3*Input!M$12 -> 0.6162795425 | F136: 0.3764542565 | G136: -0.4153895802 | H136: 0.5605946045 | I136: -47.81499252 | J136: -0.625 | K136: -1.082531755 | L136: =Input!M$12 -> 1 | M136: -1.625 | N136: -1.082531755 | O136: 1.952562419 | P136: -146.3295035 | Q136: ='Lens calcs'!H136/'Lens calcs'!O136 -> 0.2871071363 | R136: 98.51451098 | S136: -0.04250905067 | T136: 0.2839427553 | U136: 0.1791276301 | V136: 188.514511 | W136: -0.1771533564 | X136: -0.02652161699
A137: 1.3 | B137: 0.4988365948 | C137: -0.2494182974 | D137: -0.4320051634 | E137: =C$3*Input!M$12 -> 0.6162795425 | F137: 0.3668612451 | G137: -0.4320051634 | H137: 0.5667588856 | I137: -49.66189487 | J137: -0.65 | K137: -1.125833025 | L137: =Input!M$12 -> 1 | M137: -1.65 | N137: -1.125833025 | O137: 1.997498436 | P137: -145.6933809 | Q137: ='Lens calcs'!H137/'Lens calcs'!O137 -> 0.2837343326 | R137: 96.03148603 | S137: -0.02981337706 | T137: 0.2821636654 | U137: 0.1770233204 | V137: 186.031486 | W137: -0.176043373 | X137: -0.01860072044
A138: 1.35 | B138: 0.5180226177 | C138: -0.2590113088 | D138: -0.4486207466 | E138: =C$3*Input!M$12 -> 0.6162795425 | F138: 0.3572682336 | G138: -0.4486207466 | H138: 0.5734990541 | I138: -51.46722568 | J138: -0.675 | K138: -1.169134295 | L138: =Input!M$12 -> 1 | M138: -1.675 | N138: -1.169134295 | O138: 2.042669822 | P138: -145.0853204 | Q138: ='Lens calcs'!H138/'Lens calcs'!O138 -> 0.2807595472 | R138: 93.61809471 | S138: -0.0177175293 | T138: 0.2801999509 | U138: 0.1751673363 | V138: 183.6180947 | W138: -0.1748182013 | X138: -0.01105405834
A139: 1.4 | B139: 0.5372086405 | C139: -0.2686043203 | D139: -0.4652363298 | E139: =C$3*Input!M$12 -> 0.6162795425 | F139: 0.3476752222 | G139: -0.4652363298 | H139: 0.5807950609 | I139: -53.22891283 | J139: -0.7 | K139: -1.212435565 | L139: =Input!M$12 -> 1 | M139: -1.7 | N139: -1.212435565 | O139: 2.088061302 | P139: -144.5036335 | Q139: ='Lens calcs'!H139/'Lens calcs'!O139 -> 0.2781503878 | R139: 91.27472063 | S139: -0.006187799358 | T139: 0.2780815517 | U139: 0.1735394683 | V139: 181.2747206 | W139: -0.1734965211 | X139: -0.003860600083
A140: 1.42 | B140: 0.5448830497 | C140: -0.2724415248 | D140: -0.4718825631 | E140: =C$3*Input!M$12 -> 0.6162795425 | F140: 0.3438380176 | G140: -0.4718825631 | H140: 0.5838644841 | I140: -53.92098526 | J140: -0.71 | K140: -1.229756073 | L140: =Input!M$12 -> 1 | M140: -1.71 | N140: -1.229756073 | O140: 2.106276335 | P140: -144.2779884 | Q140: ='Lens calcs'!H140/'Lens calcs'!O140 -> 0.2772022238 | R140: 90.35700315 | S140: -0.001727202742 | T140: 0.2771968428 | U140: 0.1729479038 | V140: 180.3570032 | W140: -0.1729445466 | X140: -0.001077610741

Sheet Distance Relay Calcs
F1: Calculation Worksheet for 21-1 Relay
A2: Distance Relay connected at the generator terminals
A3: 21 (Diameter)
A4: Sec ohms | B4: =Input!H13 -> 10
A5: Per unit | B5: =Input!I13 -> 0.6527777778
A6: Center (gen terminals) | B6: 0
A7: Max Torque Angle | B7: =Input!H14 -> 85
B9: Angle | C9: Shift | E9: R | F9: X
B10: 0 | C10: =B$7-B10 -> 85 | D10: =COS(RADIANS(C10))*B$5 -> 0.05689333207 | E10: =COS(RADIANS(B10))*D10 -> 0.05689333207 | F10: =SIN(RADIANS(B10))*D10 -> 0
B11: 10 | C11: =B$7-B11 -> 75 | D11: =COS(RADIANS(C11))*B$5 -> 0.1689513211 | E11: =COS(RADIANS(B11))*D11 -> 0.1663845709 | F11: =SIN(RADIANS(B11))*D11 -> 0.02933808902
B12: 20 | C12: 65 | D12: 0.2758758097 | E12: 0.2592384627 | F12: 0.09435508399
B13: 30 | C13: 55 | D13: 0.3744179515 | E13: 0.3242554576 | F13: 0.1872089758
B14: 40 | C14: 45 | D14: 0.4615835933 | E14: 0.3535935467 | F14: 0.2967002146
B15: 50 | C15: 35 | D15: 0.5347242511 | E15: 0.3437141232 | F15: 0.4096225412
B16: 60 | C16: 25 | D16: 0.5916175832 | E16: 0.2958087916 | F16: 0.5123558564
B17: 70 | C17: 15 | D17: 0.6305349144 | E17: 0.2156556418 | F17: 0.5925090062
B18: 80 | C18: 5 | D18: 0.6502937613 | E18: 0.1129223266 | F18: 0.6404143378
B19: 90 | C19: -5 | D19: 0.6502937613 | E19: 3.983531984e-17 | F19: 0.6502937613
B20: 100 | C20: -15 | D20: 0.6305349144 | E20: -0.1094912388 | F20: 0.6209556722
B21: 110 | C21: -25 | D21: 0.5916175832 | E21: -0.2023451306 | F21: 0.5559386773
B22: 120 | C22: -35 | D22: 0.5347242511 | E22: -0.2673621256 | F22: 0.4630847855
B23: 130 | C23: -45 | D23: 0.4615835933 | E23: -0.2967002146 | F23: 0.3535935467
B24: 140 | C24: -55 | D24: 0.3744179515 | E24: -0.2868207912 | F24: 0.2406712201
B25: 150 | C25: -65 | D25: 0.2758758097 | E25: -0.2389154595 | F25: 0.1379379049
B26: 160 | C26: -75 | D26: 0.1689513211 | E26: -0.1587623097 | F26: 0.05778475506
B27: 170 | C27: -85 | D27: 0.05689333207 | E27: -0.05602899452 | F27: 0.009879423436
B28: 180 | C28: -95 | D28: -0.05689333207 | E28: 0.05689333207 | F28: -6.970277788e-18
B29: 190 | C29: -105 | D29: -0.1689513211 | E29: 0.1663845709 | F29: 0.02933808902
B30: 200 | C30: -115 | D30: -0.2758758097 | E30: 0.2592384627 | F30: 0.09435508399
B31: 210 | C31: -125 | D31: -0.3744179515 | E31: 0.3242554576 | F31: 0.1872089758
B32: 220 | C32: -135 | D32: -0.4615835933 | E32: 0.3535935467 | F32: 0.2967002146
B33: 230 | C33: -145 | D33: -0.5347242511 | E33: 0.3437141232 | F33: 0.4096225412
B34: 240 | C34: -155 | D34: -0.5916175832 | E34: 0.2958087916 | F34: 0.5123558564
B35: 250 | C35: -165 | D35: -0.6305349144 | E35: 0.2156556418 | F35: 0.5925090062
B36: 260 | C36: -175 | D36: -0.6502937613 | E36: 0.1129223266 | F36: 0.6404143378
B37: 270 | C37: -185 | D37: -0.6502937613 | E37: 1.195059595e-16 | F37: 0.6502937613
B38: 280 | C38: -195 | D38: -0.6305349144 | E38: -0.1094912388 | F38: 0.6209556722
B39: 290 | C39: -205 | D39: -0.5916175832 | E39: -0.2023451306 | F39: 0.5559386773
B40: 300 | C40: -215 | D40: -0.5347242511 | E40: -0.2673621256 | F40: 0.4630847855
B41: 310 | C41: -225 | D41: -0.4615835933 | E41: -0.2967002146 | F41: 0.3535935467
B42: 320 | C42: -235 | D42: -0.3744179515 | E42: -0.2868207912 | F42: 0.2406712201
B43: 330 | C43: -245 | D43: -0.2758758097 | E43: -0.2389154595 | F43: 0.1379379049
B44: 340 | C44: -255 | D44: -0.1689513211 | E44: -0.1587623097 | F44: 0.05778475506
B45: 350 | C45: -265 | D45: -0.05689333207 | E45: -0.05602899452 | F45: 0.009879423436
B46: 360 | C46: -275 | D46: 0.05689333207 | E46: 0.05689333207 | F46: -1.394055558e-17

Sheet LOF Calcs
E1: Calculation worksheet for Loss of Field Relays
A3: 40-1 | G3: 40-2 | I3: 40-3
A4: Zone 2 Radius (RX) | B4: =Input!H26/2 -> 21.3 | C4: Dir Pt 1 | D4: =((((2*B$6*B$5)))+(SQRT((2*B$6*B$5)^2-4*(1+B$6^2)*(B$5^2-B$4^2))))/(2*(1+B$6^2)) -> 18.83622552 | G4: Center | H4: =((Input!H20/2)+Input!H19)/Input!H17 -> 1.341458333 | I4: Center | J4: =((Input!H23/2)+Input!H22)/Input!H17 -> 0.7213194444
A5: Zone 2 Center (RX) | B5: =-(B4-Input!H25) -> -16.8 | C5: Dir Pt 2 | D5: =((((2*B$6*B$5)))-(SQRT((2*B$6*B$5)^2-4*(1+B$6^2)*(B$5^2-B$4^2))))/(2*(1+B$6^2)) -> -8.037393677 | G5: Radius | H5: =(Input!H20/2)/Input!H17 -> 1.119513889 | I5: Radius | J5: =(Input!H23/2)/Input!H17 -> 0.499375
A6: Directional Slope | B6: =TAN(RADIANS(Input!H27)) -> -0.3639702343 | C6: Rad 1 | D6: =ACOS(D4/B$4) -> 0.4857397347
A7: Zone 2 Radius (RX) | B7: =B4/Input!H17 -> 1.390416667 | C7: Rad 2 | D7: =ACOS(D5/B$4) -> 1.957721218
A8: Zone 2 Center (RX) | B8: =B5/Input!H17 -> -1.096666667
A10: R (per unit) | B10: X (per unit) | C10: R (ohms) | D10: X (ohms) | E10: Angle (Degrees) | F10: Radians | G10: R (per unit) | H10: X (per unit) | I10: R (per unit) | J10: X (per unit)
A11: =C11/Input!H$17 -> 1.390416667 | B11: =D11/Input!H$17 -> -1.096666667 | C11: =B$4*COS(RADIANS(E11)) -> 21.3 | D11: =IF(AND(F11>$D$6,F11<$D$7),C11*TAN(Input!H$27*PI()/180),B$5+B$4*SIN(F11)) -> -16.8 | E11: 0 | F11: =E11*PI()/180 -> 0 | G11: =H$5*COS(RADIANS(E11)) -> 1.119513889 | H11: =H$5*(SIN(RADIANS(E11)))-H$4 -> -1.341458333 | I11: =J$5*COS(RADIANS(E11)) -> 0.499375 | J11: =J$5*(SIN(RADIANS(E11)))-J$4 -> -0.7213194444
A12: =C12/Input!H$17 -> 1.369293113 | B12: =D12/Input!H$17 -> -0.8552233463 | C12: 20.97640514 | D12: =IF(AND(F12>$D$6,F12<$D$7),C12*TAN(Input!H$27*PI()/180),B$5+B$4*SIN(F12)) -> -13.10129382 | E12: 10 | F12: =E12*PI()/180 -> 0.1745329252 | G12: 1.102505957 | H12: -1.147056787 | I12: 0.4917883717 | J12: -0.6346038857
A13: =C13/Input!H$17 -> 1.306564281 | B13: =D13/Input!H$17 -> -0.6211161591 | C13: 20.01545282 | D13: =IF(AND(F13>$D$6,F13<$D$7),C13*TAN(Input!H$27*PI()/180),B$5+B$4*SIN(F13)) -> -9.514970947 | E13: 20 | F13: 0.3490658504 | G13: 1.05199894 | H13: -0.9585620326 | I13: 0.4692590025 | J13: -0.5505231354
A14: =C14/Input!H$17 -> 1.204136155 | B14: =D14/Input!H$17 -> -0.4382697185 | C14: 18.4463411 | D14: =IF(AND(F14>$D$6,F14<$D$7),C14*TAN(Input!H$27*PI()/180),B$5+B$4*SIN(F14)) -> -6.713919092 | E14: 30 | F14: 0.5235987756 | G14: 0.9695274677 | H14: -0.7817013889 | I14: 0.432471436 | J14: -0.4716319444
A15: =C15/Input!H$17 -> 1.065120961 | B15: =D15/Input!H$17 -> -0.3876723257 | C15: 16.31674664 | D15: =IF(AND(F15>$D$6,F15<$D$7),C15*TAN(Input!H$27*PI()/180),B$5+B$4*SIN(F15)) -> -5.938810096 | E15: 40 | F15: 0.6981317008 | G15: 0.8575973936 | H15: -0.6218486767 | I15: 0.3825434438 | J15: -0.4003273819
A16: =C16/Input!H$17 -> 0.8937426056 | B16: =D16/Input!H$17 -> -0.3252957055 | C16: 13.69137609 | D16: =IF(AND(F16>$D$6,F16<$D$7),C16*TAN(Input!H$27*PI()/180),B$5+B$4*SIN(F16)) -> -4.983253362 | E16: 50 | F16: 0.872664626 | G16: 0.7196096566 | H16: -0.4838609398 | I16: 0.3209920626 | J16: -0.3387760007
A17: =C17/Input!H$17 -> 0.6952083333 | B17: =D17/Input!H$17 -> -0.2530351399 | C17: 10.65 | D17: =IF(AND(F17>$D$6,F17<$D$7),C17*TAN(Input!H$27*PI()/180),B$5+B$4*SIN(F17)) -> -3.876282995 | E17: 60 | F17: 1.047197551 | G17: 0.5597569444 | H17: -0.3719308657 | I17: 0.2496875 | J17: -0.2888480084
A18: =C18/Input!H$17 -> 0.4755505076 | B18: =D18/Input!H$17 -> -0.1730862297 | C18: 7.285029053 | D18: =IF(AND(F18>$D$6,F18<$D$7),C18*TAN(Input!H$27*PI()/180),B$5+B$4*SIN(F18)) -> -2.651533731 | E18: 70 | F18: 1.221730476 | G18: 0.3828963007 | H18: -0.2894593931 | I18: 0.1707963091 | J18: -0.2520604419
A19: =C19/Input!H$17 -> 0.2414433204 | B19: =D19/Input!H$17 -> -0.08787818188 | C19: 3.698706184 | D19: =IF(AND(F19>$D$6,F19<$D$7),C19*TAN(Input!H$27*PI()/180),B$5+B$4*SIN(F19)) -> -1.346218956 | E19: 80 | F19: 1.396263402 | G19: 0.1944015467 | H19: -0.238952376 | I19: 0.08671555872 | J19: -0.2295310728
A20: =C20/Input!H$17 -> 8.517334154e-17 | B20: =D20/Input!H$17 -> -3.100056107e-17 | C20: 1.304783104e-15 | D20: =IF(AND(F20>$D$6,F20<$D$7),C20*TAN(Input!H$27*PI()/180),B$5+B$4*SIN(F20)) -> -4.749022122e-16 | E20: 90 | F20: 1.570796327 | G20: 6.857853556e-17 | H20: -0.2219444444 | I20: 3.059042548e-17 | J20: -0.2219444444
A21: =C21/Input!H$17 -> -0.2414433204 | B21: =D21/Input!H$17 -> 0.08787818188 | C21: -3.698706184 | D21: =IF(AND(F21>$D$6,F21<$D$7),C21*TAN(Input!H$27*PI()/180),B$5+B$4*SIN(F21)) -> 1.346218956 | E21: 100 | F21: 1.745329252 | G21: -0.1944015467 | H21: -0.238952376 | I21: -0.08671555872 | J21: -0.2295310728
A22: =C22/Input!H$17 -> -0.4755505076 | B22: =D22/Input!H$17 -> 0.1730862297 | C22: -7.285029053 | D22: =IF(AND(F22>$D$6,F22<$D$7),C22*TAN(Input!H$27*PI()/180),B$5+B$4*SIN(F22)) -> 2.651533731 | E22: 110 | F22: 1.919862177 | G22: -0.3828963007 | H22: -0.2894593931 | I22: -0.1707963091 | J22: -0.2520604419
A23: =C23/Input!H$17 -> -0.6952083333 | B23: =D23/Input!H$17 -> 0.1074694885 | C23: -10.65 | D23: =IF(AND(F23>$D$6,F23<$D$7),C23*TAN(Input!H$27*PI()/180),B$5+B$4*SIN(F23)) -> 1.646341101 | E23: 120 | F23: 2.094395102 | G23: -0.5597569444 | H23: -0.3719308657 | I23: -0.2496875 | J23: -0.2888480084
A24: =C24/Input!H$17 -> -0.8937426056 | B24: =D24/Input!H$17 -> -0.03154570555 | C24: -13.69137609 | D24: =IF(AND(F24>$D$6,F24<$D$7),C24*TAN(Input!H$27*PI()/180),B$5+B$4*SIN(F24)) -> -0.4832533616 | E24: 130 | F24: 2.268928028 | G24: -0.7196096566 | H24: -0.4838609398 | I24: -0.3209920626 | J24: -0.3387760007
A25: =C25/Input!H$17 -> -1.065120961 | B25: =D25/Input!H$17 -> -0.202924061 | C25: -16.31674664 | D25: =IF(AND(F25>$D$6,F25<$D$7),C25*TAN(Input!H$27*PI()/180),B$5+B$4*SIN(F25)) -> -3.108623914 | E25: 140 | F25: 2.443460953 | G25: -0.8575973936 | H25: -0.6218486767 | I25: -0.3825434438 | J25: -0.4003273819
A26: =C26/Input!H$17 -> -1.204136155 | B26: =D26/Input!H$17 -> -0.4014583333 | C26: -18.4463411 | D26: =IF(AND(F26>$D$6,F26<$D$7),C26*TAN(Input!H$27*PI()/180),B$5+B$4*SIN(F26)) -> -6.15 | E26: 150 | F26: 2.617993878 | G26: -0.9695274677 | H26: -0.7817013889 | I26: -0.432471436 | J26: -0.4716319444
A27: =C27/Input!H$17 -> -1.306564281 | B27: =D27/Input!H$17 -> -0.6211161591 | C27: -20.01545282 | D27: =IF(AND(F27>$D$6,F27<$D$7),C27*TAN(Input!H$27*PI()/180),B$5+B$4*SIN(F27)) -> -9.514970947 | E27: 160 | F27: 2.792526803 | G27: -1.05199894 | H27: -0.9585620326 | I27: -0.4692590025 | J27: -0.5505231354
A28: =C28/Input!H$17 -> -1.369293113 | B28: =D28/Input!H$17 -> -0.8552233463 | C28: -20.97640514 | D28: =IF(AND(F28>$D$6,F28<$D$7),C28*TAN(Input!H$27*PI()/180),B$5+B$4*SIN(F28)) -> -13.10129382 | E28: 170 | F28: 2.967059728 | G28: -1.102505957 | H28: -1.147056787 | I28: -0.4917883717 | J28: -0.6346038857
A29: =C29/Input!H$17 -> -1.390416667 | B29: =D29/Input!H$17 -> -1.096666667 | C29: -21.3 | D29: =IF(AND(F29>$D$6,F29<$D$7),C29*TAN(Input!H$27*PI()/180),B$5+B$4*SIN(F29)) -> -16.8 | E29: 180 | F29: 3.141592654 | G29: -1.119513889 | H29: -1.341458333 | I29: -0.499375 | J29: -0.7213194444
A30: =C30/Input!H$17 -> -1.369293113 | B30: =D30/Input!H$17 -> -1.338109987 | C30: -20.97640514 | D30: =IF(AND(F30>$D$6,F30<$D$7),C30*TAN(Input!H$27*PI()/180),B$5+B$4*SIN(F30)) -> -20.49870618 | E30: 190 | F30: 3.316125579 | G30: -1.102505957 | H30: -1.53585988 | I30: -0.4917883717 | J30: -0.8080350032
A31: =C31/Input!H$17 -> -1.306564281 | B31: =D31/Input!H$17 -> -1.572217174 | C31: -20.01545282 | D31: =IF(AND(F31>$D$6,F31<$D$7),C31*TAN(Input!H$27*PI()/180),B$5+B$4*SIN(F31)) -> -24.08502905 | E31: 200 | F31: 3.490658504 | G31: -1.05199894 | H31: -1.724354634 | I31: -0.4692590025 | J31: -0.8921157535
A32: =C32/Input!H$17 -> -1.204136155 | B32: =D32/Input!H$17 -> -1.791875 | C32: -18.4463411 | D32: =IF(AND(F32>$D$6,F32<$D$7),C32*TAN(Input!H$27*PI()/180),B$5+B$4*SIN(F32)) -> -27.45 | E32: 210 | F32: 3.665191429 | G32: -0.9695274677 | H32: -1.901215278 | I32: -0.432471436 | J32: -0.9710069444
A33: =C33/Input!H$17 -> -1.065120961 | B33: =D33/Input!H$17 -> -1.990409272 | C33: -16.31674664 | D33: =IF(AND(F33>$D$6,F33<$D$7),C33*TAN(Input!H$27*PI()/180),B$5+B$4*SIN(F33)) -> -30.49137609 | E33: 220 | F33: 3.839724354 | G33: -0.8575973936 | H33: -2.06106799 | I33: -0.3825434438 | J33: -1.042311507
A34: =C34/Input!H$17 -> -0.8937426056 | B34: =D34/Input!H$17 -> -2.161787628 | C34: -13.69137609 | D34: =IF(AND(F34>$D$6,F34<$D$7),C34*TAN(Input!H$27*PI()/180),B$5+B$4*SIN(F34)) -> -33.11674664 | E34: 230 | F34: 4.01425728 | G34: -0.7196096566 | H34: -2.199055727 | I34: -0.3209920626 | J34: -1.103862888
A35: =C35/Input!H$17 -> -0.6952083333 | B35: =D35/Input!H$17 -> -2.300802822 | C35: -10.65 | D35: =IF(AND(F35>$D$6,F35<$D$7),C35*TAN(Input!H$27*PI()/180),B$5+B$4*SIN(F35)) -> -35.2463411 | E35: 240 | F35: 4.188790205 | G35: -0.5597569444 | H35: -2.310985801 | I35: -0.2496875 | J35: -1.15379088
A36: =C36/Input!H$17 -> -0.4755505076 | B36: =D36/Input!H$17 -> -2.403230948 | C36: -7.285029053 | D36: =IF(AND(F36>$D$6,F36<$D$7),C36*TAN(Input!H$27*PI()/180),B$5+B$4*SIN(F36)) -> -36.81545282 | E36: 250 | F36: 4.36332313 | G36: -0.3828963007 | H36: -2.393457274 | I36: -0.1707963091 | J36: -1.190578447
A37: =C37/Input!H$17 -> -0.2414433204 | B37: =D37/Input!H$17 -> -2.46595978 | C37: -3.698706184 | D37: =IF(AND(F37>$D$6,F37<$D$7),C37*TAN(Input!H$27*PI()/180),B$5+B$4*SIN(F37)) -> -37.77640514 | E37: 260 | F37: 4.537856055 | G37: -0.1944015467 | H37: -2.443964291 | I37: -0.08671555872 | J37: -1.213107816
A38: =C38/Input!H$17 -> -2.555200246e-16 | B38: =D38/Input!H$17 -> -2.487083333 | C38: -3.914349313e-15 | D38: =IF(AND(F38>$D$6,F38<$D$7),C38*TAN(Input!H$27*PI()/180),B$5+B$4*SIN(F38)) -> -38.1 | E38: 270 | F38: 4.71238898 | G38: -2.057356067e-16 | H38: -2.460972222 | I38: -9.177127645e-17 | J38: -1.220694444
A39: =C39/Input!H$17 -> 0.2414433204 | B39: =D39/Input!H$17 -> -2.46595978 | C39: 3.698706184 | D39: =IF(AND(F39>$D$6,F39<$D$7),C39*TAN(Input!H$27*PI()/180),B$5+B$4*SIN(F39)) -> -37.77640514 | E39: 280 | F39: 4.886921906 | G39: 0.1944015467 | H39: -2.443964291 | I39: 0.08671555872 | J39: -1.213107816
A40: =C40/Input!H$17 -> 0.4755505076 | B40: =D40/Input!H$17 -> -2.403230948 | C40: 7.285029053 | D40: =IF(AND(F40>$D$6,F40<$D$7),C40*TAN(Input!H$27*PI()/180),B$5+B$4*SIN(F40)) -> -36.81545282 | E40: 290 | F40: 5.061454831 | G40: 0.3828963007 | H40: -2.393457274 | I40: 0.1707963091 | J40: -1.190578447
A41: =C41/Input!H$17 -> 0.6952083333 | B41: =D41/Input!H$17 -> -2.300802822 | C41: 10.65 | D41: =IF(AND(F41>$D$6,F41<$D$7),C41*TAN(Input!H$27*PI()/180),B$5+B$4*SIN(F41)) -> -35.2463411 | E41: 300 | F41: 5.235987756 | G41: 0.5597569444 | H41: -2.310985801 | I41: 0.2496875 | J41: -1.15379088
A42: =C42/Input!H$17 -> 0.8937426056 | B42: =D42/Input!H$17 -> -2.161787628 | C42: 13.69137609 | D42: =IF(AND(F42>$D$6,F42<$D$7),C42*TAN(Input!H$27*PI()/180),B$5+B$4*SIN(F42)) -> -33.11674664 | E42: 310 | F42: 5.410520681 | G42: 0.7196096566 | H42: -2.199055727 | I42: 0.3209920626 | J42: -1.103862888
A43: =C43/Input!H$17 -> 1.065120961 | B43: =D43/Input!H$17 -> -1.990409272 | C43: 16.31674664 | D43: =IF(AND(F43>$D$6,F43<$D$7),C43*TAN(Input!H$27*PI()/180),B$5+B$4*SIN(F43)) -> -30.49137609 | E43: 320 | F43: 5.585053606 | G43: 0.8575973936 | H43: -2.06106799 | I43: 0.3825434438 | J43: -1.042311507
A44: =C44/Input!H$17 -> 1.204136155 | B44: =D44/Input!H$17 -> -1.791875 | C44: 18.4463411 | D44: =IF(AND(F44>$D$6,F44<$D$7),C44*TAN(Input!H$27*PI()/180),B$5+B$4*SIN(F44)) -> -27.45 | E44: 330 | F44: 5.759586532 | G44: 0.9695274677 | H44: -1.901215278 | I44: 0.432471436 | J44: -0.9710069444
A45: =C45/Input!H$17 -> 1.306564281 | B45: =D45/Input!H$17 -> -1.572217174 | C45: 20.01545282 | D45: =IF(AND(F45>$D$6,F45<$D$7),C45*TAN(Input!H$27*PI()/180),B$5+B$4*SIN(F45)) -> -24.08502905 | E45: 340 | F45: 5.934119457 | G45: 1.05199894 | H45: -1.724354634 | I45: 0.4692590025 | J45: -0.8921157535
A46: =C46/Input!H$17 -> 1.369293113 | B46: =D46/Input!H$17 -> -1.338109987 | C46: 20.97640514 | D46: =IF(AND(F46>$D$6,F46<$D$7),C46*TAN(Input!H$27*PI()/180),B$5+B$4*SIN(F46)) -> -20.49870618 | E46: 350 | F46: 6.108652382 | G46: 1.102505957 | H46: -1.53585988 | I46: 0.4917883717 | J46: -0.8080350032
A47: =C47/Input!H$17 -> 1.390416667 | B47: =D47/Input!H$17 -> -1.096666667 | C47: 21.3 | D47: =IF(AND(F47>$D$6,F47<$D$7),C47*TAN(Input!H$27*PI()/180),B$5+B$4*SIN(F47)) -> -16.8 | E47: 360 | F47: 6.283185307 | G47: 1.119513889 | H47: -1.341458333 | I47: 0.499375 | J47: -0.7213194444
A48: =C48/Input!H$17 -> 1.369293113 | B48: =D48/Input!H$17 -> -0.8552233463 | C48: 20.97640514 | D48: =IF(AND(F48>$D$6,F48<$D$7),C48*TAN(Input!H$27*PI()/180),B$5+B$4*SIN(F48)) -> -13.10129382 | E48: 370 | F48: 6.457718232 | G48: 1.102505957 | H48: -1.147056787 | I48: 0.4917883717 | J48: -0.6346038857

Sheet Sheet1
A3: 21-2 | B3: center | C3: radius
B4: 0 | C4: 0.26
A6: Angle
A7: 0 | B7: =C$4*COS(RADIANS(A7)) -> 0.26 | C7: =C$4*SIN(RADIANS(A7))-0.17 -> -0.17
A8: 30 | B8: =C$4*COS(RADIANS(A8)) -> 0.225166605 | C8: =C$4*SIN(RADIANS(A8))-0.17 -> -0.04
A9: 60 | B9: 0.13 | C9: 0.05516660498
A10: 90 | B10: 1.592692991e-17 | C10: 0.09
A11: 120 | B11: -0.13 | C11: 0.05516660498
A12: 150 | B12: -0.225166605 | C12: -0.04
A13: 180 | B13: -0.26 | C13: -0.17
A14: 210 | B14: -0.225166605 | C14: -0.3
A15: 240 | B15: -0.13 | C15: -0.395166605
A16: 270 | B16: -4.778078974e-17 | C16: -0.43
A17: 300 | B17: 0.13 | C17: -0.395166605
A18: 330 | B18: 0.225166605 | C18: -0.3
A19: 360 | B19: 0.26 | C19: -0.17
A25: 0.5 GE Method
B26: Radius | C26: 0.415 | D26: Center | E26: 0.2075
A27: Angle | B27: R | C27: X
A28: 0 | B28: =C$26*COS(RADIANS(A28)) -> 0.415 | C28: =C$26*SIN(RADIANS(A28))-0.2075 -> -0.2075
A29: 30 | B29: =C$26*COS(RADIANS(A29)) -> 0.3594005426 | C29: =C$26*SIN(RADIANS(A29))-0.2075 -> 0
A30: 60 | B30: 0.2075 | C30: 0.1519005426
A31: 90 | B31: 2.542183044e-17 | C31: 0.2075
A32: 120 | B32: -0.2075 | C32: 0.1519005426
A33: 150 | B33: -0.3594005426 | C33: 0
A34: 180 | B34: -0.415 | C34: -0.2075
A35: 210 | B35: -0.3594005426 | C35: -0.415
A36: 240 | B36: -0.2075 | C36: -0.5669005426
A37: 270 | B37: -7.626549132e-17 | C37: -0.6225
A38: 300 | B38: 0.2075 | C38: -0.5669005426
A39: 330 | B39: 0.3594005426 | C39: -0.415
A40: 360 | B40: 0.415 | C40: -0.2075
